Cogmind - Beta 13 @@@ ROGUE MODE // 2024.05.13 @ 23:39:27 Player: RD-BNK(r) Result: Heading to fleet! Performance ------------- Evolutions (9) 4500 Regions Visited (38) 7600 Robots Destroyed (196) 980 Value Destroyed (4310) 4310 Prototype IDs (103) 2060 Alien Tech Used (9) 1800 Bonus (2114) 2114 TOTAL SCORE: 23364 Bonus ------- Triggered Max Security 2000 High Alert Combat Kills 27 Follower Combat Kills 1068 Network Hubs Disabled 400 Aligned with FarCom 300 Met Data Miner 300 Met Zhirov 300 Built Enhanced Grunts 300 A7 Reached Mainframe 300 Found Hidden Lab 3000 Used Core Reset Matrix 3000 Win 3000 Friendly Fire -11881 Cogmind --------- Core Integrity 1549/1600 Matter 51/300 Energy 176/190 System Corruption 0% Temperature Cool (35) Movement Flying (13) Location To Fleet Rendezvous Parts ------- > --- POWER (1) -------- Light Quantum Reactor > --- PROPULSION (7) --- Advanced Surge Thruster Advanced Surge Thruster Advanced Surge Thruster Advanced Surge Thruster Advanced Surge Thruster > --- UTILITY (16) ----- Experimental Coolant Injector Spectral Analyzer Advanced Hacking Suite Experimental Hacking Suite Experimental Hacking Suite Experimental Hacking Suite System Mapper Deep Network Scanner System Shield System Shield Quantum Router Quantum Router > --- WEAPON (2) ------- Kinetic Spear Kinetic Spear > --- INVENTORY (5) ---- Experimental Utility Shielding Graphene Brace Spacefold Activator Sigix Broadsword Peak State ------------ > --- POWER ------------ Light Quantum Reactor > --- PROPULSION ------- Advanced Surge Thruster Advanced Surge Thruster Advanced Surge Thruster Advanced Surge Thruster Advanced Surge Thruster Advanced Surge Thruster Advanced Surge Thruster > --- UTILITY ---------- Experimental Power Amplifier Experimental Coolant Injector Spectral Analyzer Improved Propulsion Shielding Experimental Utility Shielding Graphene Brace Advanced Hacking Suite Experimental Hacking Suite Experimental Hacking Suite Experimental Hacking Suite System Mapper Deep Network Scanner Quantum Router Quantum Router > --- WEAPON ----------- Core Stripper > --- INVENTORY -------- Light Quantum Reactor Advanced Surge Thruster Experimental Actuator Array Advanced Transmission Jammer Core Reset Matrix [Rating: 202] Favorites ----------- Power Micro Nuclear Core Engine Reinforced Ion Engine Power Core Micro Nuclear Core Reactor Light Quantum Reactor Propulsion Advanced Surge Thruster Treads Light Treads Leg Aluminum Leg Wheel Armored Huge Wheel Flight Unit Advanced Surge Thruster Utility Improved Hacking Suite Device Improved Coolant Injector Storage High-capacity Storage Unit Processor Enhanced Optical Array Hackware Improved Hacking Suite Protection Experimental Utility Shielding Artifact Spacefold Activator Weapon Improved EM Shotgun Energy Gun Improved EM Shotgun Energy Cannon Advanced Plasma Cannon Ballistic Gun Assault Rifle Launcher Rocket Launcher Special Weapon Mining Laser Impact Weapon Core Stripper Slashing Weapon Katana Piercing Weapon Enhanced Force Lance Build | -11 -10 -10 -9 -9 -9 -8 -8 -7 -7 -7 -7 -7 -7 -6 -6 -6 -6 -6 -6 -6 -6 -5 -5 -5 -5 -5 -5 -4 -4 -4 -4 -4 -4 -3 -2 -2 -2 -1 ------- Run | Yrd Mat Min Mat Min Exi Min Mat Fac Was Fac Low Low Dat Pro Fac Was Fac Ext Cet Arc Hub Fac Was Fac Upp Upp Zhi Pro Fac Was Fac Arm Lab Res Res Qua Sec Acc Slots Evolved 18 | . . . 2 . . . 2 2 . . . . . . 2 . . . . . . 2 . . . . . . 2 . . . . 2 2 . . 2 Power . | . . . . . . . . . . . . . . . . . . . . . . . . . . . . . . . . . . . . . . . Propulsion 4 | . . . 2 . . . . . . . . . . . . . . . . . . 1 . . . . . . 1 . . . . . . . . . Utility 14 | . . . . . . . 2 2 . . . . . . 2 . . . . . . 1 . . . . . . 1 . . . . 2 2 . . 2 Weapon . | . . . . . . . . . . . . . . . . . . . . . . . . . . . . . . . . . . . . . . . Parts Attached 288 | 4 10 5 8 5 . 1 46 30 . 8 6 . 5 2 10 2 10 9 2 6 1 22 . 22 6 . 2 2 17 . 5 2 6 8 4 8 12 2 Power 30 | . 1 1 . 2 . . 6 4 . 1 1 . . . . 1 1 . . 2 1 . . 3 2 . . . 1 . . 1 . . . . 2 . Engine 13 | . . 1 . 2 . . 5 3 . 1 . . . . . . . . . . . . . 1 . . . . . . . . . . . . . . Core 11 | . 1 . . . . . 1 1 . . 1 . . . . 1 1 . . 2 1 . . 1 1 . . . . . . . . . . . . . Reactor 6 | . . . . . . . . . . . . . . . . . . . . . . . . 1 1 . . . 1 . . 1 . . . . 2 . Propulsion 62 | 2 . 2 1 1 . . 16 10 . 1 . . . . . . 3 . . . . 7 . 5 . . . . 8 . . . . . 1 . 5 . Treads 14 | 2 . . 1 1 . . 10 . . . . . . . . . . . . . . . . . . . . . . . . . . . . . . . Leg . | . . . . . . . . . . . . . . . . . . . . . . . . . . . . . . . . . . . . . . . Wheel 7 | . . 2 . . . . 5 . . . . . . . . . . . . . . . . . . . . . . . . . . . . . . . Hover . | . . . . . . . . . . . . . . . . . . . . . . . . . . . . . . . . . . . . . . . Flight 41 | . . . . . . . 1 10 . 1 . . . . . . 3 . . . . 7 . 5 . . . . 8 . . . . . 1 . 5 . Utility 126 | 1 3 . 1 1 . 1 8 11 . 6 3 . 4 2 8 . 3 6 2 3 . 10 . 11 3 . 2 2 6 . 4 1 5 7 3 2 5 2 Device 52 | 1 1 . . . . . 1 4 . 5 1 . 2 . . . 1 3 . . . 6 . 7 2 . 1 1 2 . 1 1 3 4 3 . 2 . Storage 4 | . 1 . . . . . 1 1 . . . . 1 . . . . . . . . . . . . . . . . . . . . . . . . . Processor 10 | . . . . . . . 3 2 . . . . 1 . 2 . . . . . . . . . . . . . 2 . . . . . . . . . Hackware 21 | . . . . . . . . 3 . 1 . . . 1 5 . . . . 1 . 1 . 2 . . . . . . 3 . 1 1 . . . 2 Protection 35 | . 1 . 1 1 . 1 3 1 . . 2 . . 1 1 . 2 3 2 2 . 3 . 2 1 . 1 1 2 . . . 1 2 . 1 . . Artifact 4 | . . . . . . . . . . . . . . . . . . . . . . . . . . . . . . . . . . . . 1 3 . Weapon 70 | 1 6 2 6 1 . . 16 5 . . 2 . 1 . 2 1 3 3 . 1 . 5 . 3 1 . . . 2 . 1 . 1 1 . 6 . . Energy Gun 11 | . 1 2 . . . . 8 . . . . . . . . . . . . . . . . . . . . . . . . . . . . . . . Energy Cannon 8 | . . . . . . . . . . . . . . . . . 3 1 . . . 2 . 1 1 . . . . . . . . . . . . . Ballistic Gun 12 | 1 3 . 5 . . . 3 . . . . . . . . . . . . . . . . . . . . . . . . . . . . . . . Ballistic Cannon . | . . . . . . . . . . . . . . . . . . . . . . . . . . . . . . . . . . . . . . . Launcher 9 | . . . 1 1 . . . 1 . . 1 . 1 . . . . 2 . 1 . 1 . . . . . . . . . . . . . . . . Special Weapon 3 | . 2 . . . . . . . . . . . . . . . . . . . . . . . . . . . . . . . 1 . . . . . Impact Weapon 1 | . . . . . . . . . . . . . . . . . . . . . . . . . . . . . . . . . . . . 1 . . Slashing Weapon 12 | . . . . . . . 5 3 . . . . . . 1 . . . . . . . . 1 . . . . . . 1 . . . . 1 . . Piercing Weapon 14 | . . . . . . . . 1 . . 1 . . . 1 1 . . . . . 2 . 1 . . . . 2 . . . . 1 . 4 . . Special Melee Weapon . | . . . . . . . . . . . . . . . . . . . . . . . . . . . . . . . . . . . . . . . Unidentified Prototypes 20 | . 1 . . . . . 3 2 . . . . . . 4 . . . 1 . . 1 . . . . 1 . . . . 1 2 . . 3 1 . Corrupted Parts 1 | . . . . . . . 1 . . . . . . . . . . . . . . . . . . . . . . . . . . . . . . . System Corruption 9 | . . . . . . . 9 . . . . . . . . . . . . . . . . . . . . . . . . . . . . . . . Parts Lost 22 | . 1 3 1 2 . 1 3 1 . 1 . . 2 . . 2 . . . . 1 . . . . . . . . . . . . . . . 3 1 Power 6 | . . 1 . 1 . . 1 . . . . . . . . 1 . . . . 1 . . . . . . . . . . . . . . . 1 . Propulsion 6 | . . 2 . 1 . . . . . . . . . . . . . . . . . . . . . . . . . . . . . . . . 2 1 Utility 8 | . 1 . 1 . . 1 2 1 . . . . 2 . . . . . . . . . . . . . . . . . . . . . . . . . Weapon 2 | . . . . . . . . . . 1 . . . . . 1 . . . . . . . . . . . . . . . . . . . . . . Highest Loss Streak 3 | . 1 1 1 1 . 1 1 1 . 1 . . 2 . . 2 . . . . 1 . . . . . . . . . . . . . . . 3 1 To Critical Strikes 2 | . . 1 . 1 . . . . . . . . . . . . . . . . . . . . . . . . . . . . . . . . . . Average Slot Usage (%) 93 | . 97 97 83 89 88 87 88 95 100 96 92 92 91 92 99 96 93 93 93 99 93 93 94 93 94 94 91 94 92 100 100 100 95 90 92 99 98 78 Engine 4 | . 1 12 11 10 11 11 7 6 7 7 3 . . . . . . . . . . . . 1 . . . . . . . . . . . . . . Core 2 | . 12 . . . . . 1 . . . 3 7 7 7 5 6 6 6 6 6 6 5 5 1 . . . . . . . . . . . . . . Treads 7 | . 28 13 6 20 22 22 14 . . . . . . . . . . . . . . . . . . . . . . . . . . . . . . . Wheel 4 | . . 13 22 13 11 11 10 . . . . . . . . . . . . . . . . . . . . . . . . . . . . . . . Flight 16 | . . . . . . . . 26 30 30 30 30 30 30 26 24 25 26 26 26 26 28 29 28 29 29 29 29 30 31 31 31 30 27 27 29 29 22 Device 2 | . 2 . . . . . . 1 7 5 . . 2 . . . . 4 . . . 2 5 5 4 5 5 7 5 10 10 10 8 8 6 12 11 6 Storage 5 | . 14 14 11 11 11 11 9 6 7 7 7 7 5 7 . . . . . . . . . . . . . . . . . . . . . . . . Processor 6 | . . . . . . . 15 12 15 12 7 7 12 7 6 6 6 6 6 6 6 5 5 5 5 5 5 5 8 5 5 5 5 4 4 4 4 3 Hackware 19 | . . . . . . . . 21 15 19 23 23 22 23 39 40 40 40 40 40 40 35 35 35 35 35 35 35 31 31 31 31 31 35 33 33 33 34 Protection 7 | . 9 14 10 11 11 10 10 2 . . 6 7 . 7 6 6 6 1 6 6 6 7 5 4 5 5 2 2 4 5 5 5 5 4 8 8 6 . Energy Gun 3 | . . 17 1 . . . 14 . . . . . . . . . . . . . . . . . . . . . . . . . . . . . . . Ballistic Gun 3 | . 26 10 19 11 11 11 . . . . . . . . . . . . . . . . . . . . . . . . . . . . . . . . Launcher 2 | . . . 1 10 11 11 . . . . . . . . . . . . . 5 . . . . . . . . . . . . . . . . . . Slashing Weapon 1 | . . . . . . . 2 7 7 3 . . . . 2 . . . . . . . . . . . . . . . 4 5 4 . . . . . Piercing Weapon 3 | . . . . . . . . 5 7 7 6 7 7 7 10 11 6 6 6 6 6 4 5 5 5 5 5 5 5 10 5 5 5 5 8 7 8 7 Naked Turns . | . . . . . . . . . . . . . . . . . . . . . . . . . . . . . . . . . . . . . . . Heaviest Build 112 | 15 56 58 58 64 64 64 112 23 20 21 24 20 21 20 13 16 23 14 13 27 15 23 16 35 35 20 20 20 24 24 24 24 24 25 28 28 28 24 Greatest Support 80 | 40 40 40 26 26 16 16 80 23 20 20 20 20 20 20 20 20 22 22 18 18 24 30 20 30 30 20 20 30 24 24 34 24 24 36 38 38 42 24 Greatest Overweight (x) 21 | . 1 5 2 3 3 21 6 1 . 1 1 . 1 . . . 1 1 . 8 . . . 1 1 . . . . . . 1 . 1 . . . . Average Overweight (x) . | . . 2 2 2 3 3 2 . . . . . . . . . . . . 5 . . . . . . . . . . . . . . . . . . Largest Inventory Capacity 25 | 8 20 20 20 20 20 20 25 25 10 10 10 10 10 10 10 5 5 5 5 5 5 5 5 5 5 5 5 5 5 5 5 5 5 5 5 5 5 5 Average Capacity 12 | 8 17 20 20 20 20 20 24 9 10 10 10 10 8 10 5 5 5 5 5 5 5 5 5 5 5 5 5 5 5 5 5 5 5 5 5 5 5 5 Most Carried 25 | 6 14 14 15 18 19 20 25 25 10 10 10 10 10 9 9 5 5 5 5 5 5 5 5 5 5 5 5 5 5 5 5 5 5 5 5 5 5 5 Average Carried 10 | 4 10 13 13 16 18 19 23 8 9 9 10 10 7 7 4 4 4 4 4 4 4 4 5 4 5 5 4 5 4 5 5 4 4 4 4 4 3 4 Final Capacity 25 | 8 20 20 20 20 20 20 25 10 10 10 10 10 10 10 5 5 5 5 5 5 5 5 5 5 5 5 5 5 5 5 5 5 5 5 5 5 5 5 Final Carried 25 | 4 14 13 14 18 19 19 25 10 10 10 10 10 9 9 5 4 5 5 5 5 4 5 5 5 5 5 5 5 5 5 5 4 5 5 5 5 2 5 Class Distribution -------------------- 31% | Wizard-Sprinter 27% | Mutant 13% | Scavenger-Mutant 11% | Wizard-Mutant 4% | Wizard-Scout 4% | Hacker-Sprinter Dominant Class ---------------- Mutant | -10/Materials Mutant | -10/Mines Mutant | -9/Materials Scavenger-Mutant | -9/Mines Scavenger-Mutant | -9/Exiles Scavenger-Mutant | -8/Mines Mutant | -8/Materials Hacker-Scout | -7/Factory Hacker-Ninja | -7/Waste Hacker-Ninja | -7/Factory Hacker-Sprinter | -7/Lower Caves Hacker-Sprinter | -7/Lower Caves Hacker-Sprinter | -7/Data Miner Hacker-Sprinter | -6/Proximity Caves Wizard-Sprinter | -6/Factory Wizard-Sprinter | -6/Waste Wizard-Sprinter | -6/Factory Wizard-Sprinter | -6/Extension Wizard-Sprinter | -6/Cetus Wizard-Mutant | -6/Archives Wizard-Sprinter | -6/Hub_04(d) Wizard-Sprinter | -5/Factory Wizard-Sprinter | -5/Waste Wizard-Sprinter | -5/Factory Wizard-Sprinter | -5/Upper Caves Wizard-Sprinter | -5/Upper Caves Wizard-Sprinter | -5/Zhirov Wizard-Mutant | -4/Proximity Caves Wizard-Scout | -4/Factory Wizard-Scout | -4/Waste Wizard-Sprinter | -4/Factory Wizard-Sprinter | -4/Armory Wizard-Sprinter | -4/Lab Wizard-Sprinter | -3/Research Wizard-Sprinter | -2/Research Wizard-Sprinter | -2/Quarantine Wizard-Sprinter | -2/Section 7 Wizard-Sprinter | -1/Access Resources | -11 -10 -10 -9 -9 -9 -8 -8 -7 -7 -7 -7 -7 -7 -6 -6 -6 -6 -6 -6 -6 -6 -5 -5 -5 -5 -5 -5 -4 -4 -4 -4 -4 -4 -3 -2 -2 -2 -1 ----------- Run | Yrd Mat Min Mat Min Exi Min Mat Fac Was Fac Low Low Dat Pro Fac Was Fac Ext Cet Arc Hub Fac Was Fac Upp Upp Zhi Pro Fac Was Fac Arm Lab Res Res Qua Sec Acc Matter Collected 3809 | 228 224 220 113 221 . 211 534 300 87 60 127 . . 80 28 . 172 100 30 60 10 132 101 190 28 62 . 50 170 . 20 . . 220 . . 3 28 Remotely . | . . . . . . . . . . . . . . . . . . . . . . . . . . . . . . . . . . . . . . . Salvage Created 7559 | 43 401 193 198 298 . 296 2111 224 1154 60 70 . 30 66 28 . 27 211 57 795 12 398 . 226 . . . . 286 . 74 . . 218 21 . . 62 Parts 459 | 9 29 19 18 31 . 24 116 19 55 9 5 . 5 2 2 . 4 11 3 30 3 16 . 14 . . . . 15 . 8 . . 9 . . . 3 Haulers Intercepted 5 | . . . . . . . 1 1 . . . . . . . . . . . . . 3 . . . . . . . . . . . . . . . . Recyclers Shooed 4 | . . . . 1 . . 2 . . 1 . . . . . . . . . . . . . . . . . . . . . . . . . . . . Parts Field Recycled . | . . . . . . . . . . . . . . . . . . . . . . . . . . . . . . . . . . . . . . . Retrieved Matter . | . . . . . . . . . . . . . . . . . . . . . . . . . . . . . . . . . . . . . . . Parts Self-Destructed 5 | . . . . . . . . . . . 4 . . 1 . . . . . . . . . . . . . . . . . . . . . . . . Prevented . | . . . . . . . . . . . . . . . . . . . . . . . . . . . . . . . . . . . . . . . Kills | -11 -10 -10 -9 -9 -9 -8 -8 -7 -7 -7 -7 -7 -7 -6 -6 -6 -6 -6 -6 -6 -6 -5 -5 -5 -5 -5 -5 -4 -4 -4 -4 -4 -4 -3 -2 -2 -2 -1 ------- Run | Yrd Mat Min Mat Min Exi Min Mat Fac Was Fac Low Low Dat Pro Fac Was Fac Ext Cet Arc Hub Fac Was Fac Upp Upp Zhi Pro Fac Was Fac Arm Lab Res Res Qua Sec Acc Combat Hostiles Destroyed 91 | . 11 8 7 16 . 12 27 5 . . 2 . . . . . . 3 . . . . . . . . . . . . . . . . . . . . Melee 6 | . . . . . . . 2 1 . . . . . . . . . 3 . . . . . . . . . . . . . . . . . . . . Guns 49 | . 11 8 5 4 . 1 20 . . . . . . . . . . . . . . . . . . . . . . . . . . . . . . . AOE 34 | . . . 2 12 . 11 3 4 . . 2 . . . . . . . . . . . . . . . . . . . . . . . . . . . Classes Destroyed 16 | 1 4 . 1 2 . . 5 . 2 . 1 . . . . . . . . . . . . . . . . . . . . . . . . . . . Worker 11 | . . . . 1 . 2 4 . . . . . . . . . . . . . . . . 1 . . . . . . 1 . . . 1 . . 1 Builder 10 | . 1 . . . . . 3 . . . . . . . . . 1 1 . . 1 . . 2 . . . . 1 . . . . . . . . . Tunneler 7 | 3 . . . 1 . . 1 . . 1 . . . . . . . . . . . 1 . . . . . . . . . . . . . . . . Hauler 5 | . . . . . . . 1 1 . . . . . . . . . . . . . 3 . . . . . . . . . . . . . . . . Recycler 7 | . . . . . . . 4 . . . . . . . . . . . . . . . . 1 . . . . 1 . . . . 1 . . . . Minesweeper 3 | . . . . . . . . . . . 1 . . 2 . . . . . . . . . . . . . . . . . . . . . . . . Mechanic 2 | . . . . . . . 1 1 . . . . . . . . . . . . . . . . . . . . . . . . . . . . . . Operator 9 | . . . . . . . 2 1 . 1 . . . . . . . . . 4 . . . . . . . . . . 1 . . . . . . . Watcher 20 | . 1 . . . . . 4 1 . 1 . . . . 1 . . . . . . 3 . 2 . . . . 3 . 1 . . 2 . . . 1 Swarmer 35 | . 3 6 3 9 . 7 3 4 . . . . . . . . . . . . . . . . . . . . . . . . . . . . . . Grunt 38 | . 8 2 2 6 . 5 12 . . . 2 . . . . . . 1 . . . . . . . . . . . . . . . . . . . . Brawler 3 | . . . . 1 . . 2 . . . . . . . . . . . . . . . . . . . . . . . . . . . . . . . Sentry 13 | . . . 2 . . . 8 1 . . . . . . . . . 2 . . . . . . . . . . . . . . . . . . . . Hunter 2 | . . . . . . . 2 . . . . . . . . . . . . . . . . . . . . . . . . . . . . . . . Enhanced Grunt 4 | . . . . . . . . . . . . . . . . . . . . 4 . . . . . . . . . . . . . . . . . . Surgeon 1 | . . . . . . . . . 1 . . . . . . . . . . . . . . . . . . . . . . . . . . . . . Wasp 3 | . . . . . . . . . 3 . . . . . . . . . . . . . . . . . . . . . . . . . . . . . Thug 15 | . . . . . . . . . 12 . . . . . . . . . . 3 . . . . . . . . . . . . . . . . . . Savage 1 | . . . . . . . . . 1 . . . . . . . . . . . . . . . . . . . . . . . . . . . . . Butcher 1 | . . . . . . . . . 1 . . . . . . . . . . . . . . . . . . . . . . . . . . . . . Martyr 2 | . . . . . . . . . 2 . . . . . . . . . . . . . . . . . . . . . . . . . . . . . Guerrilla 2 | . . . . . . . . . . . . . . . . . . . . 2 . . . . . . . . . . . . . . . . . . Best Kill Streak 10 | 2 3 3 3 10 . 4 4 5 . 1 2 . 1 2 1 . 1 3 . 4 1 2 . 1 . . . . 3 . 1 . . 2 1 . . 2 Combat Bots Only 8 | . 2 3 3 8 . 4 3 4 . . 2 . . . . . . 3 . . . . . . . . . . . . . . . . . . . . Max Kills in Single Turn 4 | 1 2 2 2 3 . 4 4 2 1 1 1 . 1 1 1 . 1 1 1 1 1 1 . 1 . . . . 1 . 1 . . 1 1 . . 1 Gunslinging 1 | . . 1 . . . . . . . . . . . . . . . . . . . . . . . . . . . . . . . . . . . . Exploded 4 | . . . 2 2 . 4 1 2 . . 1 . . . . . . . . . . . . . . . . . . . . . . . . . . . Melee 1 | . . . . . . . 1 1 . . . . . . . . . 1 . . . . . . . . . . . . . . . . . . . . Uniques/NPCs Destroyed 2 | . . . . . . . . . . . . . 1 . . . . . 1 . . . . . . . . . . . . . . . . . . . Data Miner (-7/Data Miner) A7 (-6/Cetus) Combat | -11 -10 -10 -9 -9 -9 -8 -8 -7 -7 -7 -7 -7 -7 -6 -6 -6 -6 -6 -6 -6 -6 -5 -5 -5 -5 -5 -5 -4 -4 -4 -4 -4 -4 -3 -2 -2 -2 -1 -------- Run | Yrd Mat Min Mat Min Exi Min Mat Fac Was Fac Low Low Dat Pro Fac Was Fac Ext Cet Arc Hub Fac Was Fac Upp Upp Zhi Pro Fac Was Fac Arm Lab Res Res Qua Sec Acc Hostile Shots Fired 503 | . 46 21 40 33 . 11 82 53 . 24 9 . 3 . 8 1 5 46 . . 9 2 . 6 14 . . 6 4 . 4 . . 11 . 11 31 23 Missed 219 | . 11 1 16 9 . 1 31 30 . 11 5 . 1 . 4 . 4 26 . . 6 1 . 1 8 . . 4 3 . 3 . . 7 . 7 12 17 Damage Taken 4583 | . 401 198 374 330 . 142 832 307 . 124 79 . 97 . 49 45 20 144 . . 74 15 . 112 111 . . 56 24 . 22 . . 45 . 104 766 112 Core 1131 | . 28 24 33 9 . 5 121 158 . 33 16 . 63 . . 45 . 23 . . 12 . . 60 19 . . . 24 . 22 . . . . 54 331 51 Absorbed by Shields 125 | . . . . . . . . . . . . . . . . . . 90 . . . . . . . . . . . . . . . . . . 35 . Redirected to Shielding 186 | . . . . . . . . 9 . . 13 . . . . . . . . . . . . . . . . 24 . . . . . 34 . 39 67 . Regen/Repaired (Parts) 503 | . . . . . . . . . 5 . . . . . . . . . . . . 177 . 106 . . . . 215 . . . . . . . . . Core Remaining (%) 85 | 100 . 79 . . . 88 78 . . . . . . 61 . . . . . . 90 . . . . . . 92 . . . . 86 100 . . 73 96 Volleys Fired 221 | 6 47 11 18 24 . 9 66 4 . . 4 . . . . . 9 13 . . . 7 . 3 . . . . . . . . . . . . . . Largest 2 | 2 2 2 2 2 . 1 2 1 . . 1 . . . . . 1 1 . . . 1 . 1 . . . . . . . . . . . . . . Hottest 100 | 40 100 90 46 46 . 33 90 36 . . 36 . . . . . 90 90 . . . 98 . 98 . . . . . . . . . . . . . . Shots Fired 370 | 12 88 22 31 36 . 9 132 4 . . 4 . . . . . 9 13 . . . 7 . 3 . . . . . . . . . . . . . . Gun 301 | 12 82 22 26 26 . 1 132 . . . . . . . . . . . . . . . . . . . . . . . . . . . . . . . Cannon 31 | . . . . . . . . . . . . . . . . . 9 13 . . . 6 . 3 . . . . . . . . . . . . . . Launcher 32 | . . . 5 10 . 8 . 4 . . 4 . . . . . . . . . . 1 . . . . . . . . . . . . . . . . Special 6 | . 6 . . . . . . . . . . . . . . . . . . . . . . . . . . . . . . . . . . . . . Kinetic 157 | 12 82 10 26 26 . 1 . . . . . . . . . . . . . . . . . . . . . . . . . . . . . . . . Thermal 37 | . 6 . . . . . . . . . . . . . . . 9 13 . . . 6 . 3 . . . . . . . . . . . . . . Explosive 32 | . . . 5 10 . 8 . 4 . . 4 . . . . . . . . . . 1 . . . . . . . . . . . . . . . . Electromagnetic 144 | . . 12 . . . . 132 . . . . . . . . . . . . . . . . . . . . . . . . . . . . . . . Robot Hit Streak 16 | 5 10 8 10 6 . 2 16 6 . . 1 . . . . . . . . . . . . . . . . . . . . . . . . . . . Robot Miss Streak 5 | 2 5 3 3 2 . 2 5 . . . 1 . . . . . . . . . . . . . . . . . . . . . . . . . . . Penetration Max . | . . . . . . . . . . . . . . . . . . . . . . . . . . . . . . . . . . . . . . . Secondary Targets 6 | . . 2 1 1 . . 2 . . . . . . . . . . . . . . . . . . . . . . . . . . . . . . . Max Gunslinging Chain 1 | . . 1 1 1 . . 1 . . . . . . . . . . . . . . . . . . . . . . . . . . . . . . . Shots Hit Robots 401 | 7 49 16 22 19 . 2 118 13 52 7 2 . 1 5 1 . 2 4 10 28 1 13 . 9 . 1 . . 8 . 4 . . 4 1 . . 2 Core Hits 261 | 3 22 11 11 22 . 17 89 13 22 2 5 . 1 2 1 . . 3 4 14 1 3 . 5 . . . . 5 . 1 . . 3 . . . 1 Critical Kills 1 | . . 1 . . . . . . . . . . . . . . . . . . . . . . . . . . . . . . . . . . . . Critical Parts Destroyed 1 | . 1 . . . . . . . . . . . . . . . . . . . . . . . . . . . . . . . . . . . . . Critical Strikes 17 | . 1 1 . . . . . . 7 1 . . . . . . . 1 . 4 . . . . . . . . 2 . . . . . . . . . Destroy 2 | . 1 1 . . . . . . . . . . . . . . . . . . . . . . . . . . . . . . . . . . . . Impale 15 | . . . . . . . . . 7 1 . . . . . . . 1 . 4 . . . . . . . . 2 . . . . . . . . . Melee Attacks 529 | . . . . . . . 17 26 54 23 6 . 9 8 5 . 32 8 10 30 9 50 . 56 1 9 . 9 44 . 19 2 3 36 4 17 7 35 Impact . | . . . . . . . . . . . . . . . . . . . . . . . . . . . . . . . . . . . . . . . Slashing 39 | . . . . . . . 17 6 6 2 . . . . 1 . . . . . . . . 3 . . . . . . 4 . . . . . . . Piercing 490 | . . . . . . . . 20 48 21 6 . 9 8 4 . 32 8 10 30 9 50 . 53 1 9 . 9 44 . 15 2 3 36 4 17 7 35 Sneak Attacks 124 | . . . . . . . 1 3 52 2 1 . 1 2 . . 1 2 10 25 1 6 . 5 . 1 . . 3 . 3 . . 2 1 . . 2 Combat Hostiles 1 | . . . . . . . . . . . . . . . . . . 1 . . . . . . . . . . . . . . . . . . . . Follow-up Attacks 6 | . . . . . . . . 1 4 1 . . . . . . . . . . . . . . . . . . . . . . . . . . . . Damage Inflicted 18928 | 90 619 234 527 1250 . 709 3199 922 2968 326 241 . 68 242 49 . 201 385 793 2315 83 1330 . 660 . 78 . . 632 . 443 . . 342 52 . . 170 Guns 3563 | 90 619 234 266 270 . 16 2068 . . . . . . . . . . . . . . . . . . . . . . . . . . . . . . . Cannons . | . . . . . . . . . . . . . . . . . . . . . . . . . . . . . . . . . . . . . . . Explosions 3373 | . . . 261 980 . 666 846 446 . . 174 . . . . . . . . . . . . . . . . . . . . . . . . . . . Melee 11965 | . . . . . . . 285 476 2968 326 67 . 68 242 49 . 201 385 793 2315 83 1330 . 660 . 78 . . 632 . 443 . . 342 52 . . 170 Ramming 27 | . . . . . . 27 . . . . . . . . . . . . . . . . . . . . . . . . . . . . . . . . Kinetic 1362 | 90 619 101 266 270 . 16 . . . . . . . . . . . . . . . . . . . . . . . . . . . . . . . . Thermal 996 | . . . . 150 . . 846 . . . . . . . . . . . . . . . . . . . . . . . . . . . . . . . Explosive 2377 | . . . 261 830 . 666 . 446 . . 174 . . . . . . . . . . . . . . . . . . . . . . . . . . . Electromagnetic 2201 | . . 133 . . . . 2068 . . . . . . . . . . . . . . . . . . . . . . . . . . . . . . . Impact . | . . . . . . . . . . . . . . . . . . . . . . . . . . . . . . . . . . . . . . . Slashing 650 | . . . . . . . 285 31 252 33 . . . . 49 . . . . . . . . . . . . . . . . . . . . . . . Piercing 11315 | . . . . . . . . 445 2716 293 67 . 68 242 . . 201 385 793 2315 83 1330 . 660 . 78 . . 632 . 443 . . 342 52 . . 170 Highest Corruption 14 | . . . . . . . 14 1 1 1 . . . . . . . . . . 1 . . 2 . . . . . . . . . . . 1 . . Average Corruption 3 | . . . . . . . 4 1 1 1 . . . . . . . . . . 1 . . 1 . . . . . . . . . . . 1 . . Corruption Purged 3 | . . . . . . . . . . 1 . . . . . . . . . . . . . 2 . . . . . . . . . . . . . . Corruption Blocked . | . . . . . . . . . . . . . . . . . . . . . . . . . . . . . . . . . . . . . . . Effects 57 | . . . . . . . 51 2 2 . . . . . . . . . . . . . . 2 . . . . . . . . . . . . . . Message Errors 15 | . . . . . . . 12 1 1 . . . . . . . . . . . . . . 1 . . . . . . . . . . . . . . Matter Fused 14 | . . . . . . . 13 . 1 . . . . . . . . . . . . . . . . . . . . . . . . . . . . . Heat Flow Errors 6 | . . . . . . . 6 . . . . . . . . . . . . . . . . . . . . . . . . . . . . . . . Energy Discharges 6 | . . . . . . . 6 . . . . . . . . . . . . . . . . . . . . . . . . . . . . . . . Parts Fused 1 | . . . . . . . 1 . . . . . . . . . . . . . . . . . . . . . . . . . . . . . . . Data Loss (minor) 7 | . . . . . . . 5 1 . . . . . . . . . . . . . . . 1 . . . . . . . . . . . . . . Data Loss (major) 3 | . . . . . . . 3 . . . . . . . . . . . . . . . . . . . . . . . . . . . . . . . Misfires 3 | . . . . . . . 3 . . . . . . . . . . . . . . . . . . . . . . . . . . . . . . . Alerts 2 | . . . . . . . 2 . . . . . . . . . . . . . . . . . . . . . . . . . . . . . . . Overload Shots . | . . . . . . . . . . . . . . . . . . . . . . . . . . . . . . . . . . . . . . . Overflow Damage 2204 | . . . . 40 . 1 71 76 232 91 . . . 29 . . 126 141 93 318 . 472 . 144 . 19 . . 192 . 106 . . . 12 . . 41 Projectiles . | . . . . . . . . . . . . . . . . . . . . . . . . . . . . . . . . . . . . . . . Explosions 97 | . . . . 40 . 1 41 15 . . . . . . . . . . . . . . . . . . . . . . . . . . . . . . Melee 2107 | . . . . . . . 30 61 232 91 . . . 29 . . 126 141 93 318 . 472 . 144 . 19 . . 192 . 106 . . . 12 . . 41 Knockbacks . | . . . . . . . . . . . . . . . . . . . . . . . . . . . . . . . . . . . . . . . Impact . | . . . . . . . . . . . . . . . . . . . . . . . . . . . . . . . . . . . . . . . Kinetic . | . . . . . . . . . . . . . . . . . . . . . . . . . . . . . . . . . . . . . . . Secondary . | . . . . . . . . . . . . . . . . . . . . . . . . . . . . . . . . . . . . . . . Self-Inflicted Damage 375 | . . . 38 80 . 58 119 56 . . 24 . . . . . . . . . . . . . . . . . . . . . . . . . . . Shots 13 | . . . 2 3 . 2 4 1 . . 1 . . . . . . . . . . . . . . . . . . . . . . . . . . . Rammed 2 | . . . . . . 2 . . . . . . . . . . . . . . . . . . . . . . . . . . . . . . . . Targets Rammed 2 | . . . . . . 2 . . . . . . . . . . . . . . . . . . . . . . . . . . . . . . . . Kicked . | . . . . . . . . . . . . . . . . . . . . . . . . . . . . . . . . . . . . . . . Crushed . | . . . . . . . . . . . . . . . . . . . . . . . . . . . . . . . . . . . . . . . Highest Temperature 328 | . 92 83 19 24 . 18 287 5 . 5 3 . . . . . 190 328 . . 32 155 150 205 213 199 132 105 110 72 198 136 26 120 52 72 111 . Average Temperature 59 | . 20 36 8 12 . 12 55 5 . 5 3 . . . . . 64 123 . . 22 27 75 69 124 93 69 40 38 35 64 64 18 77 19 33 52 . Received Heat Transfer 1122 | . 195 63 117 60 . 18 360 72 . 24 36 . . . . . . 51 . . 6 . . 48 36 . . 9 . . . . . . . 9 18 . Effects 1 | . . . . . . . . . . . . . . . . . . 1 . . . . . . . . . . . . . . . . . . . . Interference 1 | . . . . . . . . . . . . . . . . . . 1 . . . . . . . . . . . . . . . . . . . . Siege Activations . | . . . . . . . . . . . . . . . . . . . . . . . . . . . . . . . . . . . . . . . Robots Corrupted 3 | . . . . . . . 3 . . . . . . . . . . . . . . . . . . . . . . . . . . . . . . . Combat Hostiles 2 | . . . . . . . 2 . . . . . . . . . . . . . . . . . . . . . . . . . . . . . . . Parts Fried 12 | . . . . . . . 12 . . . . . . . . . . . . . . . . . . . . . . . . . . . . . . . Impact Corruptions . | . . . . . . . . . . . . . . . . . . . . . . . . . . . . . . . . . . . . . . . Robots Melted . | . . . . . . . . . . . . . . . . . . . . . . . . . . . . . . . . . . . . . . . Combat Hostiles . | . . . . . . . . . . . . . . . . . . . . . . . . . . . . . . . . . . . . . . . Parts Melted 2 | . . . . 1 . . . . . . . . . . . . . 1 . . . . . . . . . . . . . . . . . . . . Heat Transferred 1150 | . . . . 150 . . 1000 . . . . . . . . . . . . . . . . . . . . . . . . . . . . . . . Parts Sabotaged . | . . . . . . . . . . . . . . . . . . . . . . . . . . . . . . . . . . . . . . . Parts Stolen . | . . . . . . . . . . . . . . . . . . . . . . . . . . . . . . . . . . . . . . . Parts Stripped . | . . . . . . . . . . . . . . . . . . . . . . . . . . . . . . . . . . . . . . . Power Chain Reactions 13 | . . . . . . . 13 . . . . . . . . . . . . . . . . . . . . . . . . . . . . . . . Alert | -11 -10 -10 -9 -9 -9 -8 -8 -7 -7 -7 -7 -7 -7 -6 -6 -6 -6 -6 -6 -6 -6 -5 -5 -5 -5 -5 -5 -4 -4 -4 -4 -4 -4 -3 -2 -2 -2 -1 ------- Run | Yrd Mat Min Mat Min Exi Min Mat Fac Was Fac Low Low Dat Pro Fac Was Fac Ext Cet Arc Hub Fac Was Fac Upp Upp Zhi Pro Fac Was Fac Arm Lab Res Res Qua Sec Acc Peak Influence 1843 | 15 207 134 265 480 . 207 307 323 57 278 . . . . 90 46 152 350 191 263 233 139 32 238 . . . . 149 76 200 423 . 296 139 1843 1799 1130 Initial 1100 | . 9 19 1 103 . . 37 107 57 39 . . . . 6 31 18 74 44 76 . 114 32 22 . . . . 37 31 53 94 . . 74 14 1100 1100 Average 137 | 5 87 49 188 324 . 90 133 143 57 117 . . . . 42 34 61 126 178 63 125 84 32 130 . . . . 43 51 131 162 . 134 70 1720 1683 573 Maximum Alert Level 5 | . 1 . 1 2 . 1 1 1 . 1 . . . . . . . 1 . 1 1 . . 1 . . . . . . 1 2 . 1 . 5 5 4 Low Security (%) 79 | 100 87 100 48 6 . 84 70 91 100 85 . . . . 100 100 100 87 100 80 91 100 100 80 . . . . 100 100 94 78 . 83 100 . . . Level 1 15 | . 12 . 51 60 . 15 29 8 . 14 . . . . . . . 12 . 19 8 . . 19 . . . . . . 5 15 . 16 . . . 8 Level 2 2 | . . . . 32 . . . . . . . . . . . . . . . . . . . . . . . . . . . 5 . . . . . 75 Level 3 . | . . . . . . . . . . . . . . . . . . . . . . . . . . . . . . . . . . . . . . 8 Level 4 . | . . . . . . . . . . . . . . . . . . . . . . . . . . . . . . . . . . . . . . 6 Level 5 . | . . . . . . . . . . . . . . . . . . . . . . . . . . . . . . . . . . . . . . . High Security . | . . . . . . . . . . . . . . . . . . . . . . . . . . . . . . . . . . . . . . . Max Security 1 | . . . . . . . . . . . . . . . . . . . . . . . . . . . . . . . . . . . . 99 99 . Squads Dispatched 70 | . 1 . 1 1 . . 2 1 . 2 . . . . 1 . 6 . . . 6 5 . 4 . . . . 11 . 4 2 . 6 1 6 7 3 Investigation 34 | . 1 . . 1 . . . 1 . 2 . . . . 1 . 5 . . . 6 2 . 2 . . . . 5 . 2 1 . 3 1 . . 1 Extermination 9 | . . . . . . . . . . . . . . . . . 1 . . . . 1 . 2 . . . . 3 . 1 . . 1 . . . . Reinforcement 15 | . . . 1 . . . 2 . . . . . . . . . . . . . . 2 . . . . . . 3 . 1 1 . 2 . . 1 2 Assault 12 | . . . . . . . . . . . . . . . . . . . . . . . . . . . . . . . . . . . . 6 6 . Garrison . | . . . . . . . . . . . . . . . . . . . . . . . . . . . . . . . . . . . . . . . Intercept . | . . . . . . . . . . . . . . . . . . . . . . . . . . . . . . . . . . . . . . . Searches Triggered . | . . . . . . . . . . . . . . . . . . . . . . . . . . . . . . . . . . . . . . . Construction Impeded . | . . . . . . . . . . . . . . . . . . . . . . . . . . . . . . . . . . . . . . . Haulers Reinforced 1 | . . . . . . . . . . . . . . . . . . . . . . 1 . . . . . . . . . . . . . . . . Active Scanning Responses . | . . . . . . . . . . . . . . . . . . . . . . . . . . . . . . . . . . . . . . . Cargo Convoy Interrupts 1 | . . . . . . . . . . . . . . . . . . . . . . . . 1 . . . . . . . . . . . . . . Stealth | -11 -10 -10 -9 -9 -9 -8 -8 -7 -7 -7 -7 -7 -7 -6 -6 -6 -6 -6 -6 -6 -6 -5 -5 -5 -5 -5 -5 -4 -4 -4 -4 -4 -4 -3 -2 -2 -2 -1 --------- Run | Yrd Mat Min Mat Min Exi Min Mat Fac Was Fac Low Low Dat Pro Fac Was Fac Ext Cet Arc Hub Fac Was Fac Upp Upp Zhi Pro Fac Was Fac Arm Lab Res Res Qua Sec Acc Distress Signals 20 | . 2 . . . . . . 1 . . . . . . . . . 4 . . 2 3 . 1 . . . . . . . 2 . 3 . . 1 1 Communications Jammed 4 | . . . . . . . 4 . . . . . . . . . . . . . . . . . . . . . . . . . . . . . . . Distress Signals 4 | . . . . . . . 4 . . . . . . . . . . . . . . . . . . . . . . . . . . . . . . . Times Spotted 416 | . 26 8 9 15 . 15 37 23 . 15 6 . 3 . 8 6 17 23 5 4 6 19 . 17 14 4 . 14 15 2 10 10 . 30 2 16 20 17 Peak Tracking Total 16 | . 5 3 4 4 . 4 3 6 . 3 3 . 2 . 5 6 6 8 5 1 7 3 . 11 7 4 . 8 3 2 9 7 . 13 2 13 16 11 Tactical Retreats 62 | . 2 . 1 1 . . 1 1 . 3 1 . 1 . 2 . 5 5 . . 2 4 . 7 4 1 . 4 2 . 1 1 . 5 . 1 3 4 Traps | -11 -10 -10 -9 -9 -9 -8 -8 -7 -7 -7 -7 -7 -7 -6 -6 -6 -6 -6 -6 -6 -6 -5 -5 -5 -5 -5 -5 -4 -4 -4 -4 -4 -4 -3 -2 -2 -2 -1 ------- Run | Yrd Mat Min Mat Min Exi Min Mat Fac Was Fac Low Low Dat Pro Fac Was Fac Ext Cet Arc Hub Fac Was Fac Upp Upp Zhi Pro Fac Was Fac Arm Lab Res Res Qua Sec Acc Traps Triggered 18 | . . . . . . . 2 1 . 1 . . . . 1 . 2 . . . . 2 . 2 . . . . 2 . . . . 1 . . 2 2 Indirectly . | . . . . . . . . . . . . . . . . . . . . . . . . . . . . . . . . . . . . . . . Trap Hack Attempts . | . . . . . . . . . . . . . . . . . . . . . . . . . . . . . . . . . . . . . . . Triggered . | . . . . . . . . . . . . . . . . . . . . . . . . . . . . . . . . . . . . . . . Disarmed . | . . . . . . . . . . . . . . . . . . . . . . . . . . . . . . . . . . . . . . . Reprogrammed 4 | . . . . . . . . . . . . . . . . . . . . . . . . . . . . . . . . . . . 4 . . . Reused 1 | . . . . . . . . . . . . . 1 . . . . . . . . . . . . . . . . . . . . . . . . . Traps Extracted 4 | . . . . . . . . . . . . . 4 . . . . . . . . . . . . . . . . . . . . . . . . . Installed 8 | . . . . . . . . . . . . . 8 . . . . . . . . . . . . . . . . . . . . . . . . . Triggered 2 | . . . . . . . . . . . . . . . . . . . . . . . . 2 . . . . . . . . . . . . . . Most Traps Carried 4 | . . . . . . . . . . . 4 4 4 . . . . . . . . . . . . . . . . . . . . . . . . . Machines | -11 -10 -10 -9 -9 -9 -8 -8 -7 -7 -7 -7 -7 -7 -6 -6 -6 -6 -6 -6 -6 -6 -5 -5 -5 -5 -5 -5 -4 -4 -4 -4 -4 -4 -3 -2 -2 -2 -1 ---------- Run | Yrd Mat Min Mat Min Exi Min Mat Fac Was Fac Low Low Dat Pro Fac Was Fac Ext Cet Arc Hub Fac Was Fac Upp Upp Zhi Pro Fac Was Fac Arm Lab Res Res Qua Sec Acc Machines Disabled 17 | . . 1 . 1 . 2 4 . . . . . . . . . . . . . . . . . . . . . . . . 1 2 . . 3 3 . Max in Single Turn 1 | . . 1 . 1 . 1 1 . . . . . . . . . . . . . . . . . . . . . . . . 1 1 . . 1 1 . Garrison Access 14 | . . . . . . . 1 1 . 1 . . . . . . 3 . . . . 2 . 2 . . . . . . 1 . . 1 1 . . 1 Network Hub 2 | . . . . . . . . . . . . . . . . . . . . . 2 . . . . . . . . . . . . . . . . . Machines Repaired . | . . . . . . . . . . . . . . . . . . . . . . . . . . . . . . . . . . . . . . . Machines Dismantled . | . . . . . . . . . . . . . . . . . . . . . . . . . . . . . . . . . . . . . . . Machines Sabotaged 2 | . . . . . . . . . . . . . . . . . . . . . 2 . . . . . . . . . . . . . . . . . Overloaded Fab Kills . | . . . . . . . . . . . . . . . . . . . . . . . . . . . . . . . . . . . . . . . Hacking | -11 -10 -10 -9 -9 -9 -8 -8 -7 -7 -7 -7 -7 -7 -6 -6 -6 -6 -6 -6 -6 -6 -5 -5 -5 -5 -5 -5 -4 -4 -4 -4 -4 -4 -3 -2 -2 -2 -1 --------- Run | Yrd Mat Min Mat Min Exi Min Mat Fac Was Fac Low Low Dat Pro Fac Was Fac Ext Cet Arc Hub Fac Was Fac Upp Upp Zhi Pro Fac Was Fac Arm Lab Res Res Qua Sec Acc Machines Accessed 169 | . 6 1 3 1 2 . 10 12 . 9 2 . 4 . 5 . 17 7 1 . 6 14 . 14 1 . 4 . 20 . 7 3 . 12 4 . . 4 Terminals 108 | . 6 1 3 . . . 8 8 . 6 1 . . . 3 . 11 7 1 . 6 8 . 6 . . . . 13 . 4 3 . 8 2 . . 3 Fabricators 22 | . . . . . . . . 2 . 1 . . . . 1 . 3 . . . . 2 . 3 . . . . 4 . 2 . . 3 1 . . . Repair Stations 8 | . . . . . . . . 1 . 1 . . . . 1 . . . . . . 2 . 1 . . . . 2 . . . . . . . . . Recycling Units 1 | . . . . . . . . . . . . . . . . . . . . . . . . 1 . . . . . . . . . . . . . . Scanalyzers 2 | . . . . . . . 1 . . . . . . . . . . . . . . . . 1 . . . . . . . . . . . . . . Garrison Access 15 | . . . . . . . 1 1 . 1 . . . . . . 3 . . . . 2 . 2 . . . . 1 . 1 . . 1 1 . . 1 Total Hacks 605 | . 18 1 9 1 2 . 31 30 . 23 3 . 28 . 20 . 44 9 1 . 12 49 . 69 1 . 17 . 86 . 36 17 . 57 20 . . 21 Successful 519 | . 6 1 6 1 2 . 21 18 . 10 3 . 28 . 14 . 40 9 1 . 12 48 . 68 1 . 17 . 78 . 31 13 . 53 20 . . 18 Failed 85 | . 12 . 3 . . . 10 12 . 13 . . . . 6 . 4 . . . . 1 . 1 . . . . 7 . 5 4 . 4 . . . 3 Catastrophic 9 | . 1 . . . . . 2 2 . 3 . . . . . . . . . . . . . . . . . . . . . . . . . . . 1 Database Lockouts 1 | . . . . . . . . . . . . . . . . . . . . . . . . . . . . . 1 . . . . . . . . . Manual 294 | . 18 1 6 . 1 . 16 18 . 13 . . . . 14 . 27 1 1 . 11 22 . 28 . . . . 36 . 17 9 . 31 11 . . 13 Terminals 401 | . 18 1 9 . . . 26 21 . 16 2 . . . 15 . 32 9 1 . 12 32 . 32 . . . . 53 . 25 17 . 45 15 . . 20 Fabricators 76 | . . . . . . . . 5 . 2 . . . . 2 . 9 . . . . 8 . 10 . . . . 15 . 10 . . 11 4 . . . Repair Stations 40 | . . . . . . . . 2 . 3 . . . . 3 . . . . . . 7 . 10 . . . . 15 . . . . . . . . . Recycling Units 3 | . . . . . . . . . . . . . . . . . . . . . . . . 3 . . . . . . . . . . . . . . Scanalyzers 12 | . . . . . . . 4 . . . . . . . . . . . . . . . . 8 . . . . . . . . . . . . . . Garrison Access 23 | . . . . . . . 1 2 . 2 . . . . . . 3 . . . . 2 . 6 . . . . 3 . 1 . . 1 1 . . 1 Terminal Hacks 286 | . 1 . 4 1 2 . 10 5 . 3 3 . 28 . 7 . 19 9 1 . 4 22 . 23 1 . 17 . 41 . 17 11 . 33 11 . . 13 Record 24 | . . . . . 1 . . . . . 2 . 11 . . . . . . . . . . 1 . . 5 . 1 . 1 . . 2 . . . . Part Schematic 40 | . . . 1 . . . . . . . . . 11 . 4 . 1 . . . . 1 . 2 . . 4 . 6 . 2 . . 7 . . . 1 Robot Schematic 3 | . . . . . . . . . . . . . 3 . . . . . . . . . . . . . . . . . . . . . . . . . Robot Analysis 13 | . . . . . . . . . . . . . . . . . . . . . . . . . . . 4 . 2 . 1 . . 4 . . . 2 Prototype ID Bank 20 | . . . . . . . 1 2 . . . . 3 . . . 1 . . . . . . 4 . . 4 . 2 . 1 . . 2 . . . . Open Door 11 | . . . . 1 . . . . . . 1 . . . . . 1 5 1 . . . . . 1 . . . . . . . . . . . . 1 Open DSF 1 | . . . . . . . . . . . . . . . . . . . . . . . . 1 . . . . . . . . . . . . . . Level Access Points 7 | . . . . . . . . . . . . . . . . . 1 . . . 1 1 . . . . . . 1 . . . . 1 1 . . 1 Branch Access Points 11 | . . . . . . . . 1 . 1 . . . . . . 1 . . . . 1 . 1 . . . . 1 . 1 1 . 1 1 . . 1 Machine Index 11 | . . . . . . . . 1 . . . . . . 1 . 1 . . . . 1 . 1 . . . . 1 . 1 1 . 1 1 . . 1 Terminal Index 5 | . 1 . 1 . . . . . . 1 . . . . . . . 1 . . 1 . . . . . . . . . . . . . . . . . Garrison Index 1 | . . . . . . . . . . . . . . . . . . . . . 1 . . . . . . . . . . . . . . . . . Alert Level 9 | . . . . . . . . . . . . . . . . . 2 . . . . 2 . 1 . . . . 2 . . 1 . . 1 . . . Unreport Threat 15 | . . . . . . . 3 . . . . . . . . . 1 3 . . . . . . . . . . 1 . . . . 1 1 . . 5 Locate Traps 20 | . . . . . . . . . . . . . . . 1 . 1 . . . . 4 . 1 . . . . 6 . . 3 . 2 1 . . 1 Reprogram Traps 1 | . . . . . . . . . . . . . . . . . . . . . . . . . . . . . . . . . . . 1 . . . Dispatch Records 7 | . . . . . . . . . . . . . . . . . 1 . . . . 1 . 1 . . . . 2 . 1 . . 1 . . . . Surveillance Status 1 | . . . . . . . . . . . . . . . . . . . . . . . . . . . . . . . 1 . . . . . . . Transport Status 1 | . . . . . . . . . . . . . . . . . . . . . . . . . . . . . . . . . . 1 . . . . Recall Investigation 16 | . . . . . . . . . . . . . . . . . 3 . . . . 3 . 1 . . . . 3 . 2 . . 3 1 . . . Recall Extermination 8 | . . . . . . . . . . . . . . . . . 1 . . . . 1 . 1 . . . . 3 . 1 . . 1 . . . . Recall Reinforcements 6 | . . . 1 . . . . . . . . . . . . . . . . . . 1 . . . . . . 2 . 1 . . 1 . . . . Recall Assault 2 | . . . . . . . . . . . . . . . . . . . . . . . . 2 . . . . . . . . . . . . . . Hauler Manifests 14 | . . . 1 . . . 1 1 . . . . . . 1 . 1 . . . . 2 . 2 . . . . 2 . 1 1 . 1 . . . . Registered Components 10 | . . . . . . . 1 . . 1 . . . . . . 1 . . . . 1 . 1 . . . . 1 . 1 1 . 1 1 . . . Registered Prototypes 10 | . . . . . . . 1 . . . . . . . . . 1 . . . . 1 . 1 . . . . 1 . 1 2 . 1 1 . . . Zone Layout 18 | . . . . . . . 3 . . . . . . . . . 1 . . . 1 2 . 2 . . . . 4 . 1 1 . 2 1 . . . Derelict Proto ID Bank 1 | . . . . . 1 . . . . . . . . . . . . . . . . . . . . . . . . . . . . . . . . . Fabricator Hacks 46 | . . . . . . . . 3 . 1 . . . . 1 . 6 . . . . 5 . 6 . . . . 10 . 5 . . 7 2 . . . Network Status 10 | . . . . . . . . 2 . 1 . . . . 1 . . . . . . 1 . 1 . . . . 2 . 1 . . 1 . . . . Load Schematic 17 | . . . . . . . . . . . . . . . . . 3 . . . . 2 . 2 . . . . 4 . 2 . . 3 1 . . . Build 19 | . . . . . . . . 1 . . . . . . . . 3 . . . . 2 . 3 . . . . 4 . 2 . . 3 1 . . . Repair Station Hacks 32 | . . . . . . . . . . . . . . . 2 . . . . . . 6 . 10 . . . . 14 . . . . . . . . . Scan Component 15 | . . . . . . . . . . . . . . . . . . . . . . 3 . 5 . . . . 7 . . . . . . . . . Repair 15 | . . . . . . . . . . . . . . . . . . . . . . 3 . 5 . . . . 7 . . . . . . . . . Refit 2 | . . . . . . . . . . . . . . . 2 . . . . . . . . . . . . . . . . . . . . . . . Recycling Unit Hacks . | . . . . . . . . . . . . . . . . . . . . . . . . . . . . . . . . . . . . . . . Scanalyzer 12 | . . . . . . . 4 . . . . . . . . . . . . . . . . 8 . . . . . . . . . . . . . . Insert Component 6 | . . . . . . . 2 . . . . . . . . . . . . . . . . 4 . . . . . . . . . . . . . . Analyze 6 | . . . . . . . 2 . . . . . . . . . . . . . . . . 4 . . . . . . . . . . . . . . Garrison Access Hacks 14 | . . . . . . . 1 1 . 1 . . . . . . 3 . . . . 2 . 2 . . . . . . 1 . . 1 1 . . 1 Seal Access 14 | . . . . . . . 1 1 . 1 . . . . . . 3 . . . . 2 . 2 . . . . . . 1 . . 1 1 . . 1 Unauthorized Hacks 129 | . 5 1 2 . . . 6 9 . 5 . . . . 4 . 12 . . . 8 13 . 19 . . . . 13 . 8 2 . 12 6 . . 4 Terminals 86 | . 5 1 2 . . . 6 7 . 4 . . . . 2 . 9 . . . 8 9 . 8 . . . . 4 . 3 2 . 8 4 . . 4 Track 5 | . . . . . . . . . . . . . . . . . . . . . . 1 . 2 . . . . . . . . . 1 1 . . . Assimilate 25 | . 3 . . . . . 3 4 . 1 . . . . . . 4 . . . . 3 . 2 . . . . 2 . . . . 1 1 . . 1 Botnet 33 | . 1 1 1 . . . 2 2 . 2 . . . . 2 . 4 . . . . 4 . 2 . . . . 2 . 2 1 . 4 1 . . 2 Detonate 2 | . . . . . . . . . . . . . . . . . . . . . 2 . . . . . . . . . . . . . . . . . Disrupt 1 | . . . . . . . . . . . . . . . . . . . . . . . . . . . . . . . . . . 1 . . . . Operators 14 | . 1 . 1 . . . 1 1 . 1 . . . . . . 1 . . . . 1 . 2 . . . . . . 1 1 . 1 1 . . 1 Sabotage 6 | . . . . . . . . . . . . . . . . . . . . . 6 . . . . . . . . . . . . . . . . . Fabricators 29 | . . . . . . . . 1 . 1 . . . . 1 . 3 . . . . 3 . 4 . . . . 5 . 5 . . 4 2 . . . Prioritize 18 | . . . . . . . . . . . . . . . . . 3 . . . . 2 . 3 . . . . 4 . 2 . . 3 1 . . . Liberate 2 | . . . . . . . . . . . . . . . . . . . . . . . . . . . . . . . 2 . . . . . . . Haulers 9 | . . . . . . . . 1 . 1 . . . . 1 . . . . . . 1 . 1 . . . . 1 . 1 . . 1 1 . . . Repair Stations 4 | . . . . . . . . 1 . . . . . . 1 . . . . . . 1 . . . . . . 1 . . . . . . . . . Mechanics 4 | . . . . . . . . 1 . . . . . . 1 . . . . . . 1 . . . . . . 1 . . . . . . . . . Recycling Units 3 | . . . . . . . . . . . . . . . . . . . . . . . . 3 . . . . . . . . . . . . . . Reject 1 | . . . . . . . . . . . . . . . . . . . . . . . . 1 . . . . . . . . . . . . . . Recyclers 1 | . . . . . . . . . . . . . . . . . . . . . . . . 1 . . . . . . . . . . . . . . Mask 1 | . . . . . . . . . . . . . . . . . . . . . . . . 1 . . . . . . . . . . . . . . Scanalyzers . | . . . . . . . . . . . . . . . . . . . . . . . . . . . . . . . . . . . . . . . Garrison Access 7 | . . . . . . . . . . . . . . . . . . . . . . . . 4 . . . . 3 . . . . . . . . . Broadcast 2 | . . . . . . . . . . . . . . . . . . . . . . . . 1 . . . . 1 . . . . . . . . . Restock 1 | . . . . . . . . . . . . . . . . . . . . . . . . 1 . . . . . . . . . . . . . . Reprogram 2 | . . . . . . . . . . . . . . . . . . . . . . . . 1 . . . . 1 . . . . . . . . . Watchers 2 | . . . . . . . . . . . . . . . . . . . . . . . . 1 . . . . 1 . . . . . . . . . Data Cores Recovered . | . . . . . . . . . . . . . . . . . . . . . . . . . . . . . . . . . . . . . . . Used . | . . . . . . . . . . . . . . . . . . . . . . . . . . . . . . . . . . . . . . . Hacking Detections 82 | . 6 . 3 . . . 5 8 . 6 . . . . 4 . 9 2 . . . 4 . 8 . . . . 9 . 4 2 . 8 3 . . 1 Full Trace Events 24 | . 1 . . . . . . 1 . 2 . . . . 1 . 4 . . . . 2 . 2 . . . . 4 . 2 1 . 3 1 . . . Feedback Events 1 | . . . . . . . . 1 . . . . . . . . . . . . . . . . . . . . . . . . . . . . . . Corruption 1 | . . . . . . . . 1 . . . . . . . . . . . . . . . . . . . . . . . . . . . . . . Feedback Blocked . | . . . . . . . . . . . . . . . . . . . . . . . . . . . . . . . . . . . . . . . Robot Schematics Acquired 3 | . . . . . . . . . . . . . 3 . . . . . . . . . . . . . . . . . . . . . . . . . Robots Built . | . . . . . . . . . . . . . . . . . . . . . . . . . . . . . . . . . . . . . . . Authchips . | . . . . . . . . . . . . . . . . . . . . . . . . . . . . . . . . . . . . . . . Time . | . . . . . . . . . . . . . . . . . . . . . . . . . . . . . . . . . . . . . . . Total Robot Build Rating . | . . . . . . . . . . . . . . . . . . . . . . . . . . . . . . . . . . . . . . . Part Schematics Acquired 46 | . . . 1 . . . 2 . . . . . 11 . 4 . 1 . . . . 1 . 6 . . 4 . 6 . 2 . . 7 . . . 1 Parts Built 25 | . . . . . . . . 1 . . . . . . . . 4 . . . . 4 . 5 . . . . 4 . 2 . . 3 2 . . . Authchips . | . . . . . . . . . . . . . . . . . . . . . . . . . . . . . . . . . . . . . . . Time 836 | . . . . . . . . 53 . . . . . . . . 143 . . . . 87 . 123 . . . . 246 . 62 . . 93 29 . . . Total Part Build Rating 173 | . . . . . . . . 6 . . . . . . . . 24 . . . . 28 . 36 . . . . 30 . 14 . . 21 14 . . . Parts Repaired 15 | . . . . . . . . . . . . . . . . . . . . . . 3 . 5 . . . . 7 . . . . . . . . . Time 563 | . . . . . . . . . . . . . . . . . . . . . . 159 . 155 . . . . 249 . . . . . . . . . Parts Recycled . | . . . . . . . . . . . . . . . . . . . . . . . . . . . . . . . . . . . . . . . Recycled Matter . | . . . . . . . . . . . . . . . . . . . . . . . . . . . . . . . . . . . . . . . Retrieved Matter . | . . . . . . . . . . . . . . . . . . . . . . . . . . . . . . . . . . . . . . . Retrieved Components . | . . . . . . . . . . . . . . . . . . . . . . . . . . . . . . . . . . . . . . . Parts Scanalyzed 6 | . . . . . . . 2 . . . . . . . . . . . . . . . . 4 . . . . . . . . . . . . . . Part Schematics Acquired 6 | . . . . . . . 2 . . . . . . . . . . . . . . . . 4 . . . . . . . . . . . . . . Parts Damaged 1 | . . . . . . . . . . . . . . . . . . . . . . . . 1 . . . . . . . . . . . . . . Bothacking | -11 -10 -10 -9 -9 -9 -8 -8 -7 -7 -7 -7 -7 -7 -6 -6 -6 -6 -6 -6 -6 -6 -5 -5 -5 -5 -5 -5 -4 -4 -4 -4 -4 -4 -3 -2 -2 -2 -1 ------------ Run | Yrd Mat Min Mat Min Exi Min Mat Fac Was Fac Low Low Dat Pro Fac Was Fac Ext Cet Arc Hub Fac Was Fac Upp Upp Zhi Pro Fac Was Fac Arm Lab Res Res Qua Sec Acc Used RIF Installer . | . . . . . . . . . . . . . . . . . . . . . . . . . . . . . . . . . . . . . . . Robots Hacked . | . . . . . . . . . . . . . . . . . . . . . . . . . . . . . . . . . . . . . . . Non-combat . | . . . . . . . . . . . . . . . . . . . . . . . . . . . . . . . . . . . . . . . Combat . | . . . . . . . . . . . . . . . . . . . . . . . . . . . . . . . . . . . . . . . Robot Hacks Applied . | . . . . . . . . . . . . . . . . . . . . . . . . . . . . . . . . . . . . . . . Relay Couplers Released . | . . . . . . . . . . . . . . . . . . . . . . . . . . . . . . . . . . . . . . . Fabnet Peak Effective % . | . . . . . . . . . . . . . . . . . . . . . . . . . . . . . . . . . . . . . . . Robots Rewired 9 | . . . . . . . . . . . . . . . . . . 8 . . . . . . . . . . . . . 1 . . . . . . Allies Hacked 1 | . . . . . . . . . . . . . . . . . . . . . . . . . . . . . . . . . . 1 . . . . Hacks Repelled . | . . . . . . . . . . . . . . . . . . . . . . . . . . . . . . . . . . . . . . . Allies | -11 -10 -10 -9 -9 -9 -8 -8 -7 -7 -7 -7 -7 -7 -6 -6 -6 -6 -6 -6 -6 -6 -5 -5 -5 -5 -5 -5 -4 -4 -4 -4 -4 -4 -3 -2 -2 -2 -1 -------- Run | Yrd Mat Min Mat Min Exi Min Mat Fac Was Fac Low Low Dat Pro Fac Was Fac Ext Cet Arc Hub Fac Was Fac Upp Upp Zhi Pro Fac Was Fac Arm Lab Res Res Qua Sec Acc Total Allies 82 | . 2 . . 5 . . 2 3 20 1 . . . . . . 4 16 5 . . 2 . 2 . . . . 5 . 3 10 . 1 1 . . . Largest Group 20 | . 2 2 2 6 6 4 3 3 20 1 . . . . . . 2 11 13 12 1 1 . 1 1 . . . 3 . 3 10 . 1 1 . . . Highest-Rated Group 855 | . 20 20 20 97 97 50 30 46 556 26 . . . . . . 36 462 855 696 96 26 . 26 26 . . . 141 . 141 481 . 26 26 . . . Highest-Rated Ally 159 | . 10 10 10 31 31 16 10 26 35 26 . . . . . . 26 159 159 96 96 26 . 26 26 . . . 47 . 47 58 . 26 26 . . . Total Orders 45 | . . 2 4 3 . 4 14 11 . . . . . . . . . . 1 . 1 5 . . . . . . . . . . . . . . . . STAY 25 | . . 1 2 2 . 2 8 6 . . . . . . . . . . . . 1 3 . . . . . . . . . . . . . . . . FOLLOW 19 | . . 1 2 1 . 2 6 5 . . . . . . . . . . . . . 2 . . . . . . . . . . . . . . . . GUARD 1 | . . . . . . . . . . . . . . . . . . . 1 . . . . . . . . . . . . . . . . . . . Ally Attacks 174 | . . . . 5 . 31 . . . . . . . . . . . 42 35 32 . . . . . . . . 7 . 9 13 . . . . . . Total Damage 4574 | . . . . 109 . 336 . . . . . . . . . . . 1312 806 1224 . . . . . . . . 212 . 200 375 . . . . . . Kills 32 | . . . . 2 . 4 . . . . . . . . . . . 7 7 5 . . . . . . . . 2 . . 5 . . . . . . Allies Corrupted 1 | . . . . . . . . . . . . . . . . . . . . . . . . . . . . . 1 . . . . . . . . . Allies Melted . | . . . . . . . . . . . . . . . . . . . . . . . . . . . . . . . . . . . . . . . Intel | -11 -10 -10 -9 -9 -9 -8 -8 -7 -7 -7 -7 -7 -7 -6 -6 -6 -6 -6 -6 -6 -6 -5 -5 -5 -5 -5 -5 -4 -4 -4 -4 -4 -4 -3 -2 -2 -2 -1 ------- Run | Yrd Mat Min Mat Min Exi Min Mat Fac Was Fac Low Low Dat Pro Fac Was Fac Ext Cet Arc Hub Fac Was Fac Upp Upp Zhi Pro Fac Was Fac Arm Lab Res Res Qua Sec Acc Robot Analysis Total 13 | . . . . . . . . . . . . . . . . . . . . . . . . . . . 4 . 2 . 1 . . 4 . . . 2 Derelict Logs Recovered 13 | . . 1 . 1 . . . . . . 3 2 . 2 . . . . . . . . . . 2 1 . 1 . . . . . . . . . . Drone Launches . | . . . . . . . . . . . . . . . . . . . . . . . . . . . . . . . . . . . . . . . Drone Recoveries . | . . . . . . . . . . . . . . . . . . . . . . . . . . . . . . . . . . . . . . . Exploration | -11 -10 -10 -9 -9 -9 -8 -8 -7 -7 -7 -7 -7 -7 -6 -6 -6 -6 -6 -6 -6 -6 -5 -5 -5 -5 -5 -5 -4 -4 -4 -4 -4 -4 -3 -2 -2 -2 -1 ------------- Run | Yrd Mat Min Mat Min Exi Min Mat Fac Was Fac Low Low Dat Pro Fac Was Fac Ext Cet Arc Hub Fac Was Fac Upp Upp Zhi Pro Fac Was Fac Arm Lab Res Res Qua Sec Acc Turns Passed 21805 | 77 1377 962 257 1195 297 1381 3388 1054 173 517 499 59 143 76 212 33 1172 624 242 1956 158 1294 29 1202 106 156 27 213 1408 9 390 51 85 447 88 133 136 179 Spaces Moved 27990 | 27 521 535 154 753 203 697 1987 1453 113 913 797 219 208 190 609 84 2513 689 124 545 341 1691 142 2699 634 650 147 492 2168 70 1417 243 133 1556 423 598 503 749 Core 421 | . . . . . . 26 . . . . . . . . . . . . . 395 . . . . . . . . . . . . . . . . . . Treads 691 | 27 521 141 . . . . 2 . . . . . . . . . . . . . . . . . . . . . . . . . . . . . . . Legs . | . . . . . . . . . . . . . . . . . . . . . . . . . . . . . . . . . . . . . . . Wheels 4160 | . . 394 154 753 203 671 1985 . . . . . . . . . . . . . . . . . . . . . . . . . . . . . . . Hover . | . . . . . . . . . . . . . . . . . . . . . . . . . . . . . . . . . . . . . . . Flight 22704 | . . . . . . . . 1453 113 913 797 219 208 190 609 84 2513 689 124 150 341 1691 142 2699 634 650 147 492 2168 70 1417 243 133 1556 423 598 489 749 Fastest Speed 5 | 160 160 120 120 120 145 145 115 28 28 27 27 27 27 27 27 27 13 13 21 21 11 13 13 5 5 13 13 5 10 10 5 10 10 5 5 5 5 10 Average Speed 47 | 160 220 159 120 138 145 180 139 32 28 29 27 27 29 27 27 27 23 21 21 331 20 16 13 13 12 13 13 12 10 10 9 10 10 11 9 9 9 10 Slowest Speed 1100 | 160 240 240 120 145 145 1100 240 102 28 98 95 27 95 27 27 29 74 70 21 450 21 20 13 53 38 13 13 13 16 10 10 53 10 50 10 10 13 13 Overloaded Moves 210 | . . . . . . . . . . . . . . . . . 7 24 . . 4 . . 31 23 . . 12 . . 12 . . 25 9 17 46 . Propulsion Burnouts . | . . . . . . . . . . . . . . . . . . . . . . . . . . . . . . . . . . . . . . . Robots Hopped 81 | . . . . . . . . 3 1 16 2 . . . 5 . 11 4 . . 1 1 . 7 1 2 . . 8 . 2 . . 9 2 2 1 3 Cave-ins Triggered . | . . . . . . . . . . . . . . . . . . . . . . . . . . . . . . . . . . . . . . . Teleports 1 | . . . . . . . . . . . . . . . . . . . . . . . . . . . . . . . . 1 . . . . . . Spacefolds 7 | . . . . . . . . . . . . . . . . . . . . . . . . . . . . . . . . . . . . . 7 . Exploration Rate (%) 59 | 3 97 96 19 99 59 91 86 38 80 25 88 54 83 50 19 94 58 62 76 86 34 43 82 58 85 79 61 73 47 79 41 15 96 33 16 76 24 27 Regions Visited 38 Branch Regions 20 Pre-discovered Areas 9 | . . . . 1 1 . . . . . 1 . 1 . . . . . . . . . . . 1 . 3 1 . . . . . . . . . . Known Exits Taken 10 | . . . . . . . . . . 1 . . . . . . 1 . . . 1 . . 1 . . . 1 . . 1 . 1 1 1 . 1 . Unknown Exits Taken 20 | 1 1 1 1 1 1 1 1 . . . 1 1 1 1 . . . 1 1 1 . . . . 1 1 1 . . . . 1 . . . 1 . . Scrap Searched 18 | . . 3 . 1 . 1 . . . . 3 . . 2 . . . . . . . . . . 3 4 . 1 . . . . . . . . . . Spaces Dug 387 | . 6 . . 18 . 43 9 6 . 10 10 . 1 1 2 . 37 15 . . 8 50 . 44 1 6 . 9 32 . 8 1 . 27 2 11 3 27 Terrain Destroyed 639 | . 6 . 45 98 . 82 46 32 . 10 35 . 1 1 2 . 37 15 . . 8 50 . 44 1 6 . 9 32 . 8 1 . 27 2 11 3 27 Melee 271 | . . . . . . . 9 6 . 10 4 . 1 1 2 . 28 2 . . 8 32 . 41 1 6 . 9 32 . 8 1 . 27 2 11 3 27 Projectile 37 | . 6 . . . . . . . . . . . . . . . 9 13 . . . 6 . 3 . . . . . . . . . . . . . . AOE 331 | . . . 45 98 . 82 37 26 . . 31 . . . . . . . . . . 12 . . . . . . . . . . . . . . . . Terrain Rammed . | . . . . . . . . . . . . . . . . . . . . . . . . . . . . . . . . . . . . . . . Walls Destroyed . | . . . . . . . . . . . . . . . . . . . . . . . . . . . . . . . . . . . . . . . Machines Disabled . | . . . . . . . . . . . . . . . . . . . . . . . . . . . . . . . . . . . . . . . Actions | -11 -10 -10 -9 -9 -9 -8 -8 -7 -7 -7 -7 -7 -7 -6 -6 -6 -6 -6 -6 -6 -6 -5 -5 -5 -5 -5 -5 -4 -4 -4 -4 -4 -4 -3 -2 -2 -2 -1 --------- Run | Yrd Mat Min Mat Min Exi Min Mat Fac Was Fac Low Low Dat Pro Fac Was Fac Ext Cet Arc Hub Fac Was Fac Upp Upp Zhi Pro Fac Was Fac Arm Lab Res Res Qua Sec Acc Total 35075 | 48 650 619 192 869 206 809 2457 2003 172 1115 1057 218 276 201 649 92 2998 1127 319 625 407 2595 151 3416 652 700 155 622 3261 71 1639 265 199 1766 461 648 564 801 Wait 5848 | 10 61 67 10 84 3 100 281 448 11 180 245 . 36 . 14 5 433 390 180 44 58 798 10 630 11 44 . 120 1033 2 205 13 48 165 30 20 38 21 Move 27796 | 26 520 534 153 752 202 696 1986 1447 110 883 793 218 207 189 600 83 2492 680 123 544 338 1689 141 2684 631 645 146 491 2153 69 1412 242 132 1538 418 594 493 742 Hop 71 | . . . . . . . . 3 1 13 1 . . . 4 . 9 4 . . 1 1 . 7 1 2 . . 7 . 2 . . 8 2 1 1 3 Pick Up 101 | . 8 2 3 4 1 1 26 9 1 3 1 . 5 2 5 . 4 1 1 . . 7 . 4 . . 2 . 3 . . 1 1 1 2 1 2 . Fast Attach 118 | 1 5 . . 1 . . 13 14 . 3 . . 3 . 4 2 4 . 2 . . 8 . 13 1 . 2 . 15 . 2 . 5 3 2 8 5 2 Attach 65 | . . 3 2 1 . 1 9 10 . 1 . . 1 2 4 . 4 3 . 1 1 5 . 1 . . 1 . 1 . . 1 2 1 2 . 8 . Detach 31 | . 1 . . . . . 1 3 . 1 . . 1 . . . 3 3 . 1 . 3 . 1 . . 1 . 1 . . . 3 1 1 . 3 3 Swap 113 | 3 5 2 6 3 . . 24 6 . 4 6 . 1 . 2 . 2 6 . 5 . 9 . 8 5 . . 2 1 . 3 2 1 4 . . 3 . Drop 163 | 2 3 . . . . . 34 35 1 6 1 . 5 . 12 2 6 1 3 . . 9 . 11 2 . 3 . 4 . 2 2 4 2 1 10 1 1 Fire 221 | 6 47 11 18 24 . 9 66 4 . . 4 . . . . . 9 13 . . . 7 . 3 . . . . . . . . . . . . . . Melee 496 | . . . . . . . 17 24 48 21 6 . 9 8 4 . 32 8 10 30 9 50 . 54 1 9 . 9 43 . 13 2 3 34 3 14 6 29 Ram 2 | . . . . . . 2 . . . . . . . . . . . . . . . . . . . . . . . . . . . . . . . . Kick . | . . . . . . . . . . . . . . . . . . . . . . . . . . . . . . . . . . . . . . . Crush . | . . . . . . . . . . . . . . . . . . . . . . . . . . . . . . . . . . . . . . . Escape Stasis 22 | . . . . . . . . . . . . . . . . . . . . . . 9 . . . . . . . . . . . 9 . . 4 . Rewire 20 | . . . . . . . . . . . . . . . . . . 18 . . . . . . . . . . . . . 2 . . . . . . Trap 8 | . . . . . . . . . . . . . 8 . . . . . . . . . . . . . . . . . . . . . . . . . Miscellaneous . | . . . . . . . . . . . . . . . . . . . . . . . . . . . . . . . . . . . . . . . Route ------- -11/Scrapyard -10/Materials (discovered 5 exits: *Mat x3 / *Min x2) -10/Mines (discovered 2 exits: *Mat x2) -9/Materials -9/Mines (discovered 3 exits: *Mat x2 / *Exi) -9/Exiles -8/Mines (discovered 2 exits: *Mat x2) -8/Materials (discovered 2 exits: *Fac x2) -7/Factory (discovered 2 exits: *Low x2) -7/Waste -7/Factory (discovered 3 exits: *Fac / *Low x2) -7/Lower Caves -7/Lower Caves -7/Data Miner -6/Proximity Caves -6/Factory -6/Waste -6/Factory (discovered 8 exits: *Fac x4 / *Low x2 / *Ext x2) -6/Extension (discovered 2 exits: *Fac / *Cet) -6/Cetus -6/Archives (discovered 3 exits: *Fac / *Hub x2) -6/Hub_04(d) (discovered 4 exits: *Fac x4) -5/Factory (discovered 6 exits: Fac x4 / *Upp x2) -5/Waste -5/Factory (discovered 4 exits: *Fac x2 / *Upp x2) -5/Upper Caves -5/Upper Caves (discovered 2 exits: *Fac / *Zhi) -5/Zhirov -4/Proximity Caves -4/Factory (discovered 7 exits: Res x4 / *Upp x2 / Arm) -4/Waste -4/Factory (discovered 4 exits: *Res / Upp x2 / *Arm) -4/Armory -4/Lab -3/Research (discovered 5 exits: *Res x3 / Tes x2) -2/Research (discovered 5 exits: Acc x3 / *Qua x2) -2/Quarantine -2/Section 7 -1/Access (discovered 2 exits: *Sur / Com) To Fleet Rendezvous History --------- Turn | Location | Event 7 | -11/Scrapyard | Discovered new exit (range 3) 78 | -11/Scrapyard | Entered Materials 78 | -10/Materials | Discovered new exit (range 7) 306 | -10/Materials | Build established: Mutant 361 | -10/Materials | Discovered new exit (range 4) 623 | -10/Materials | Discovered new exit (range 9) 810 | -10/Materials | Discovered new exit (range 7) 1094 | -10/Materials | Discovered new exit (range 3) 1455 | -10/Materials | Entered Mines 1455 | -10/Mines | Accompanied by 2 allies 1847 | -10/Mines | Discovered new exit (range 14) 2077 | -10/Mines | Discovered new exit (range 9) 2083 | -10/Mines | Received a Rocket Launcher from a helpful Derelict 2417 | -10/Mines | Entered Materials 2417 | -9/Materials | Accompanied by 2 allies 2417 | -9/Materials | Evolved 2 slots: Propulsion x2 2631 | -9/Materials | Discovered new exit (range 6) 2674 | -9/Materials | Entered Mines 2674 | -9/Mines | Accompanied by 2 allies 2803 | -9/Mines | Destroyed 8 combat bots 2955 | -9/Mines | Discovered new exit (range 12) 2971 | -9/Mines | Met a Derelict shopkeep closing up shop 3042 | -9/Mines | Deemed a non-threat by the Exiles lab entrance 3042 | -9/Mines | Discovered new exit (range 5) 3077 | -9/Mines | Build established: Scavenger-Mutant 3362 | -9/Mines | Discovered new exit (range 14) 3422 | -9/Mines | Assisted by bots powering up and referring to "LRC-V3" 3594 | -9/Mines | Learned Materials terminal intel 3639 | -9/Mines | Learned location of Storage (-9) 3869 | -9/Mines | Entered Exiles 3869 | -9/Exiles | Accompanied by 6 allies 3899 | -9/Exiles | Led the pair of lost Derelicts to a safe place 3904 | -9/Exiles | Met 8R-AWN 3930 | -9/Exiles | Met EX-HEX 3970 | -9/Exiles | Met EX-BIN 3985 | -9/Exiles | Aligned with FarCom system 3987 | -9/Exiles | Given EX-Vault access code 4020 | -9/Exiles | Opened EX-Vault 4030 | -9/Exiles | Found 0b10 Alert Chip 4060 | -9/Exiles | Warned to stay clear of 0b10 Research branches 4101 | -9/Exiles | Met EX-DEC 4107 | -9/Exiles | Learned location of Zion (-6) 4152 | -9/Exiles | Discovered new exit (range 10) 4166 | -9/Exiles | Left Exiles lab with 0b10 Alert Chip 4166 | -9/Exiles | Entered Mines 4166 | -8/Mines | Accompanied by 4 allies 4598 | -8/Mines | Discovered new exit (range 5) 4751 | -8/Mines | Lost 3 allies 4789 | -8/Mines | Discovered new exit (range 4) 5547 | -8/Mines | Entered Materials 5547 | -8/Materials | Accompanied by 1 ally 5547 | -8/Materials | Evolved 2 slots: Utility x2 5548 | -8/Materials | Loaded intel: 12 terminal locations 6145 | -8/Materials | Build established: Mutant 6334 | -8/Materials | Discovered new exit (range 14) 7486 | -8/Materials | Discovered new exit (range 16) 8935 | -8/Materials | System corruption reached 10% 8935 | -8/Materials | Entered Factory 8935 | -7/Factory | Accompanied by 2 allies 8935 | -7/Factory | Evolved 2 slots: Utility x2 9056 | -7/Factory | Fabricated Nuclear Pulse Array (x1) 9169 | -7/Factory | Discovered new exit (range 9) 9235 | -7/Factory | Build established: Hacker-Mutant 9594 | -7/Factory | Build established: Hacker-Scout 9709 | -7/Factory | Identified exit to Lower Caves 9989 | -7/Factory | Manually triggered Chute Trap 9989 | -7/Factory | Sucked down chute 9989 | -7/Factory | Entered Waste 9990 | -7/Waste | Joined by Warlord forces that had cleared the area 10154 | -7/Waste | Murdered 20 allies 10159 | -7/Waste | Discovered new exit (range 10) 10162 | -7/Waste | Entered Factory 10228 | -7/Factory | Build established: Hacker-Ninja 10608 | -7/Factory | Discovered new exit (range 17) 10679 | -7/Factory | Entered Lower Caves 10721 | -7/Lower Caves | Learned Factory terminal intel 10795 | -7/Lower Caves | Build established: Hacker-Sprinter 11118 | -7/Lower Caves | Learned Factory non-interactive machine intel 11171 | -7/Lower Caves | Attracted the attention of an 0b10 checkpoint 11171 | -7/Lower Caves | Discovered new exit (range 15) 11178 | -7/Lower Caves | Entered another Lower Caves area 11198 | -7/Lower Caves | Learned 8 Factory zone layouts 11211 | -7/Lower Caves | Learned Factory stockpile data 11235 | -7/Lower Caves | Discovered new exit (range 10) 11237 | -7/Lower Caves | Entered Data Miner 11237 | -7/Data Miner | Discovered new exit (range 6) 11242 | -7/Data Miner | Met Data Miner 11268 | -7/Data Miner | Learned location of Section 7 (-2) 11268 | -7/Data Miner | Acquired the access code to Warlord's prototype stash 11273 | -7/Data Miner | Received God Mode back door access code from Data Miner 11329 | -7/Data Miner | Destroyed Data Miner 11332 | -7/Data Miner | Data Conduit disabled 11332 | -7/Data Miner | Found Prototype Hackware 11333 | -7/Data Miner | Found Prototype Hackware 11334 | -7/Data Miner | Found Prototype Hackware 11380 | -7/Data Miner | Entered Proximity Caves 11444 | -6/Proximity Caves | Discovered new exit (range 17) 11445 | -6/Proximity Caves | Learned Factory terminal intel 11446 | -6/Proximity Caves | Learned Factory emergency access door positions 11456 | -6/Proximity Caves | Entered Factory 11456 | -6/Factory | Evolved 2 slots: Utility x2 11457 | -6/Factory | Identified exit to Factory 11457 | -6/Factory | Identified Deep Network Scanner 11458 | -6/Factory | Identified System Mapper 11459 | -6/Factory | Identified Quantum Router 11460 | -6/Factory | Loaded intel: 170 non-interactive machine locations 11461 | -6/Factory | Loaded intel: 26 terminal locations 11515 | -6/Factory | Spotted B-75 Beast 11555 | -6/Factory | Found Prototype Processor 11555 | -6/Factory | Identified Exp. Targeting Computer 11668 | -6/Factory | Sucked down chute 11668 | -6/Factory | Entered Waste 11668 | -6/Waste | Spotted C-40 Crusher 11673 | -6/Waste | Found Enh. Force Lance 11674 | -6/Waste | Spotted C-40 Crusher 11676 | -6/Waste | Spotted C-40 Crusher 11679 | -6/Waste | Spotted C-40 Crusher 11679 | -6/Waste | Spotted C-40 Crusher 11690 | -6/Waste | Crushed by Compactor (2 parts destroyed, 1 dropped) 11694 | -6/Waste | Spotted C-40 Crusher 11698 | -6/Waste | Discovered new exit (range 10) 11701 | -6/Waste | Entered Factory 11702 | -6/Factory | Loaded intel: 28 terminal locations 11740 | -6/Factory | Identified exit to Lower Caves 11740 | -6/Factory | Identified exit to Extension 11742 | -6/Factory | Build established: Wizard-Sprinter 11950 | -6/Factory | Fabricated Exp. Propulsion Shielding? 12154 | -6/Factory | Fabricated Exp. Utility Shielding (x1) 12233 | -6/Factory | Fabricated Adv. Surge Thruster (x2) 12873 | -6/Factory | Entered Extension 12891 | -6/Extension | Rescued a captive Derelict 12892 | -6/Extension | Rescued a captive Derelict 12947 | -6/Extension | Spotted B-75 Beast 13102 | -6/Extension | Rescued a captive Derelict 13168 | -6/Extension | Rescued A7 13183 | -6/Extension | Rescued a captive Derelict 13184 | -6/Extension | Rescued a captive Derelict 13353 | -6/Extension | Rescued a captive Derelict 13354 | -6/Extension | Rescued a captive Derelict 13454 | -6/Extension | Discovered exit to Factory (range 10) 13454 | -6/Extension | Discovered new exit (range 6) 13497 | -6/Extension | Entered Cetus 13497 | -6/Cetus | Accompanied by 11 allies (A7) 13500 | -6/Cetus | Spotted Cetus Guard 13500 | -6/Cetus | Spotted Cetus Guard 13500 | -6/Cetus | Spotted Cetus Guard 13500 | -6/Cetus | Spotted Cetus Guard 13502 | -6/Cetus | Acquired a Cetus Manufacturing Module code from A7 13513 | -6/Cetus | Allies destroyed Cetus Guard 13518 | -6/Cetus | Allies destroyed Cetus Guard 13521 | -6/Cetus | Allies destroyed Cetus Guard 13521 | -6/Cetus | Allies destroyed Cetus Guard 13538 | -6/Cetus | Started Cetus Manufacturing Module 13547 | -6/Cetus | Lost 3 allies 13547 | -6/Cetus | Escorted A7 to Cetus Mainframe 13563 | -6/Cetus | Manufactured an Enhanced Grunt 13588 | -6/Cetus | Manufactured an Enhanced Grunt 13613 | -6/Cetus | Manufactured an Enhanced Grunt 13638 | -6/Cetus | Manufactured an Enhanced Grunt 13663 | -6/Cetus | Manufactured an Enhanced Grunt 13690 | -6/Cetus | Murdered A7 13690 | -6/Cetus | Destroyed A7 13693 | -6/Cetus | Extracted ID and sensor layout for unrecognized location from A7's data core 13695 | -6/Cetus | Discovered new exit (range 21) 13739 | -6/Cetus | Entered Archives 13739 | -6/Archives | Accompanied by 12 allies 13766 | -6/Archives | Discovered new exit (range 22) 13775 | -6/Archives | Discovered exit to Factory (range 21) 13778 | -6/Archives | Discovered new exit (range 15) 13894 | -6/Archives | Murdered 9 allies 14176 | -6/Archives | Build established: Wizard-Mutant 15695 | -6/Archives | Entered Hub_04(d) 15695 | -6/Hub_04(d) | Accompanied by 1 ally 15705 | -6/Hub_04(d) | Discovered exit to Factory (range 7) 15739 | -6/Hub_04(d) | Network Hub disabled 15756 | -6/Hub_04(d) | Network Hub disabled 15853 | -6/Hub_04(d) | Entered Factory 15853 | -5/Factory | Evolved 2 slots: Propulsion x1, Utility x1 15908 | -5/Factory | Identified exit to Upper Caves 15976 | -5/Factory | Build established: Wizard-Sprinter 16231 | -5/Factory | Repaired Adv. Surge Thruster 16295 | -5/Factory | Repaired Adv. Surge Thruster 16343 | -5/Factory | Repaired Cld. VTOL Module 16442 | -5/Factory | Identified exit to Factory 16476 | -5/Factory | Fabricated Adv. Surge Thruster? 16540 | -5/Factory | Fabricated Adv. Surge Thruster (x2) 16980 | -5/Factory | Spotted B-75 Beast 17147 | -5/Factory | Manually triggered Chute Trap 17147 | -5/Factory | Sucked down chute 17147 | -5/Factory | Entered Waste 17147 | -5/Waste | The area was eerily silent 17153 | -5/Waste | Discovered new exit (range 22) 17176 | -5/Waste | Entered Factory 17181 | -5/Factory | Identified exit to DSF 17280 | -5/Factory | Discovered exit to Upper Caves (range 8) 17419 | -5/Factory | Discovered exit to Factory (range 22) 17639 | -5/Factory | Fabricated Cld. Fission Core? 17850 | -5/Factory | Repaired Adv. Surge Thruster 17883 | -5/Factory | Repaired Adv. Surge Thruster 17915 | -5/Factory | Repaired Adv. Surge Thruster 17948 | -5/Factory | Repaired Adv. Surge Thruster 17980 | -5/Factory | Repaired Adv. Surge Thruster 18030 | -5/Factory | Discovered exit to Factory (range 16) 18065 | -5/Factory | Fabricated Lgt. Quantum Reactor (x2) 18182 | -5/Factory | Cargo convoy interrupted 18344 | -5/Factory | Fabricated Adv. Plasma Cannon (x2) 18378 | -5/Factory | Entered Upper Caves 18378 | -5/Upper Caves | Accompanied by 1 ally 18407 | -5/Upper Caves | Learned location of Armory (-4) 18474 | -5/Upper Caves | Discovered new exit (range 4) 18476 | -5/Upper Caves | Learned location of 1 exit from Factory 18484 | -5/Upper Caves | Entered another Upper Caves area 18514 | -5/Upper Caves | Discovered exit to Factory (range 6) 18567 | -5/Upper Caves | Encountered a Warlord checkpoint 18639 | -5/Upper Caves | Discovered new exit (range 8) 18640 | -5/Upper Caves | Entered Zhirov 18640 | -5/Zhirov | Discovered new exit (range 3) 18643 | -5/Zhirov | Met Zhirov 18646 | -5/Zhirov | Learned location of Quarantine (-2) 18646 | -5/Zhirov | Learned location of Testing (-3) 18646 | -5/Zhirov | Learned location of Command (-1) 18646 | -5/Zhirov | Zhirov requested help retrieving the SGEMP Prototype 18649 | -5/Zhirov | Found Alien Artifact 18649 | -5/Zhirov | Identified Integrated Dissipator 18649 | -5/Zhirov | Installed Integrated Dissipator, increased core heat dissipation (+20) 18659 | -5/Zhirov | Found Alien Artifact 18667 | -5/Zhirov | Entered Proximity Caves 18854 | -4/Proximity Caves | Spotted B-86 Titan 18879 | -4/Proximity Caves | Discovered exit to Factory (range 12) 18880 | -4/Proximity Caves | Entered Factory 18880 | -4/Factory | Evolved 2 slots: Propulsion x1, Utility x1 18881 | -4/Factory | Identified exit to Upper Caves 18913 | -4/Factory | Repaired Adv. Surge Thruster 18946 | -4/Factory | Repaired Adv. Surge Thruster 18978 | -4/Factory | Repaired Adv. Surge Thruster 19011 | -4/Factory | Repaired Adv. Surge Thruster 19043 | -4/Factory | Repaired Adv. Surge Thruster 19085 | -4/Factory | Repaired Exp. Utility Shielding 19140 | -4/Factory | Repaired Centrium Medium Armor Plating 19161 | -4/Factory | Identified exit to Armory 19466 | -4/Factory | Fabricated Spectral Analyzer (x1) 19526 | -4/Factory | Build established: Wizard-Scout 19715 | -4/Factory | Fabricated Exp. Coolant Injector (x1) 19872 | -4/Factory | Identified exit to Research 20013 | -4/Factory | Central database locked down 20035 | -4/Factory | Fabricated Kinetic Spear? 20247 | -4/Factory | Fabricated Exp. Coolant Injector (x1) 20288 | -4/Factory | Manually triggered Chute Trap 20288 | -4/Factory | Sucked down chute 20288 | -4/Factory | Entered Waste 20289 | -4/Waste | Spotted C-40 Crusher 20289 | -4/Waste | Spotted C-40 Crusher 20293 | -4/Waste | Spotted C-40 Crusher 20294 | -4/Waste | Spotted C-40 Crusher 20295 | -4/Waste | Discovered new exit (range 23) 20296 | -4/Waste | Spotted C-40 Crusher 20296 | -4/Waste | Spotted C-40 Crusher 20297 | -4/Waste | Entered Factory 20310 | -4/Factory | Spotted B-86 Titan 20336 | -4/Factory | Spotted B-86 Titan 20421 | -4/Factory | Discovered exit to Research (range 6) 20546 | -4/Factory | Build established: Wizard-Sprinter 20677 | -4/Factory | Fabricated Exp. Hacking Suite (x1) 20678 | -4/Factory | Fabricated Exp. Hacking Suite (x1) 20687 | -4/Factory | Entered Armory 20727 | -4/Armory | Assisted by bots powering up and referring to "LRC-V3" 20735 | -4/Armory | Identified Transdimensional Reconstructor 20735 | -4/Armory | Warped through subspace to slip node 20735 | -4/Armory | Discovered new exit (range 1) 20738 | -4/Armory | Entered Lab 20738 | -4/Lab | Discovered exit to Research (range 9) 20740 | -4/Lab | Hidden lab's door opened automatically 20740 | -4/Lab | Sensor layout match revealed 20741 | -4/Lab | Gained access to the hidden lab's interior 20764 | -4/Lab | Found Alien Artifact 20764 | -4/Lab | Identified Core Expander 20764 | -4/Lab | Installed Core Expander, added new Propulsion slot 20771 | -4/Lab | Found Integrated Dissipator 20771 | -4/Lab | Installed Integrated Dissipator, increased core heat dissipation (+20) 20809 | -4/Lab | Found Quantum Router 20813 | -4/Lab | Found Prototype Special Weapon 20813 | -4/Lab | Identified Gui. Remote Datajack 20820 | -4/Lab | Found Alien Artifact 20823 | -4/Lab | Entered Research 20823 | -3/Research | Evolved 2 slots: Utility x2 20856 | -3/Research | Identified exit to Research 20856 | -3/Research | Identified exit to Testing 20881 | -3/Research | Fabricated Exp. Hacking Suite (x1) 20899 | -3/Research | Spotted B-86 Titan 20979 | -3/Research | Spotted B-86 Titan 21006 | -3/Research | Fabricated Exp. Power Amplifier? 21130 | -3/Research | Spotted B-86 Titan 21169 | -3/Research | Fabricated Kinetic Spear (x1) 21270 | -3/Research | Entered another Research area 21270 | -2/Research | Evolved 2 slots: Utility x2 21271 | -2/Research | Spotted B-90 Cyclops 21277 | -2/Research | Identified exit to Access 21277 | -2/Research | Identified exit to Quarantine 21307 | -2/Research | Fabricated Adv. Surge Thruster (x2) 21343 | -2/Research | Spotted B-90 Cyclops 21345 | -2/Research | Found Exp. Actuator Array 21358 | -2/Research | Spotted B-90 Cyclops 21358 | -2/Research | Entered Quarantine 21359 | -2/Quarantine | Maximum security lockdown engaged 21368 | -2/Quarantine | Found Alien Impact Weapon 21368 | -2/Quarantine | Identified Core Stripper 21423 | -2/Quarantine | Found Alien Slashing Weapon 21423 | -2/Quarantine | Identified Sigix Broadsword 21446 | -2/Quarantine | Found Alien Artifact 21446 | -2/Quarantine | Identified Phase Redirector 21478 | -2/Quarantine | Spotted Fortress 21491 | -2/Quarantine | Discovered new exit (range 5) 21491 | -2/Quarantine | Entered Section 7 21491 | -2/Section 7 | Identified Core Reset Matrix 21491 | -2/Section 7 | Used Core Reset Matrix 21492 | -2/Section 7 | Maximum security lockdown engaged 21495 | -2/Section 7 | Sensed 17 artifacts in vicinity 21497 | -2/Section 7 | Found Integrated Dissipator 21498 | -2/Section 7 | Installed Integrated Dissipator, increased core heat dissipation (+20) 21570 | -2/Section 7 | Found Spacefold Activator 21572 | -2/Section 7 | Spotted B-90 Cyclops 21579 | -2/Section 7 | Spotted S7 Guard 21582 | -2/Section 7 | Found Core Membrane 21582 | -2/Section 7 | Installed Core Membrane, gained immunity to corruption 21611 | -2/Section 7 | Discovered exit to Access (range 23) 21618 | -2/Section 7 | Found Integrated Dissipator 21618 | -2/Section 7 | Installed Integrated Dissipator, increased core heat dissipation (+20) 21627 | -2/Section 7 | Entered Access 21627 | -1/Access | Evolved 2 slots: Utility x2 21633 | -1/Access | Spotted B-99 Colossus 21639 | -1/Access | Identified exit to Command 21639 | -1/Access | Identified exit to Surface 21656 | -1/Access | Lost 3 parts (1p2n) 21714 | -1/Access | Spotted B-99 Colossus 21806 | *** | Heading to fleet! Last Messages --------------- >>Seal Access door sealed. 21702_ U-05 Engineer builds a Wall. 21709_ Triggered Alarm Trap. 21709_ An alarm sounds. 21709_ ALERT: Alarm triggered, dispatching investigation squad. 21709_ Slug penetrates Wall. 21714_ Penetrated by Slug. 21714_ Slug penetrates Fabricator. 21717_ ALERT: Suspicious intruders detected, dispatching Cutter reinforcements to area. 21734_ K-01 Serf cleans the Terminal. 21765_ Acquired System Shield. 21769_ Penetrated by Slug. 21769_ Adv. Surge Thruster destroyed. 21769_ Dropped Exp. Power Amplifier. 21805_ Connecting with Terminal... >>Open(Door) Sealed Barrier opened. 21806_ The Access Shell folds into the floor. Map ----- +----------------------------------------------------+ | ! #?????????????????????????????????????? | | #?????????????????????????????????????? | | """"" #?????????????????????????????????????? | | ""Y"" #?????????????????????????????????????? | | #?????????????????????????????????????? | | #?????????????????????????????????????? | | ####+#####+#?????????????????????????????????????? | | ?# #?# #?????????????????????????????????????? | | ?# #?# #?????????????????????????????????????? | | ?# #?# #?????????????????????????????????????? | | ?# #?# #?????????????????????????????????????? | | ?# #?# #######???????????????????????????????? | | ?### ###?# # #???????????????????????????????? | | #### #???# # ]]]#???????????????????????????????? | | # #???# #! ]] #???BB????BB????????????????????? | | + #???# # ]] #???BB????BB????????????????????? | | # #???# # #???????????????????????????????? | | # ##### # #???????????????????????????????? | | #### + #???????????????????????????????? | | # ####"########???????????????????????????????? | | # #??## #????#""""""""""#??????????????????? | | + #???# #????# #??????????????????? | | # #???# #????# #??????????????????? | | # ##??# #????# #??????????????????? | | + #??## ##????# "" #??????????????????? | | # #???# #?????# "@ #??????????????????? | | # #???# #?????# #??????????????????? | | # #???# #?????# #??????????????????? | | # #???# #?????# #??????????????????? | | # #???# #????## ##?????????????????? | | +### ##### #????# #?????????????????? | | #????##"" ##?????????????????? | | #?????#"" #??????????????????? | | #######+### #?????#"" #??????????????????? | | ?????? ?# #?????#T #??????????????????? | | ?????? ] ?# #?????#"" #??????????????????? | | ????? # #?????#"" #??????????????????? | | ????? # #######"" #####+####?????????? | | ???? # ???? | | ???? # ???? | | ???###+###################################+??????? | | ???????+ ##?????????###########???????????? | | ???????# #??????????# #???????????? | | ???????# #??????????# #???????????? | | ???????# #??????????# #???????????? | | ???????#* #???######## " #???????????? | | ???????# #???# # """ #???????????? | | ????# ###+##+####### # """#???????????? | | ????# # " #???????????? | | ????+ + #???????????? | +----------------------------------------------------+ Best States ------------- Heat Dissipation 132 Coolant Potential 120 Energy Generation 37 Energy Capacity 350 Matter Stores 300 Matter Capacity 300 Sight Range 24 Robot Scan Range 14 Terrain Scan Density 10 ECM Strength 1 Jamming Range 12 Power Amplification 40 Armor Coverage 600 Propulsion Shielding 66 Utility Shielding 90 Evasion (%) 80 Targeting Accuracy 16 Core Analysis 6 Recoil Reduction 4 Offensive Hacking 107 Defensive Hacking 70 Trap Extractor Capacity 6 Item Schematics ----------------- Cld. Q-thruster | -1/Access | Hacked Robot Schematics ------------------ None Fabricated ------------ Nuclear Pulse Array | x1 | -7/Factory | Preloaded Exp. Propulsion Shielding | x1 | -6/Factory Exp. Utility Shielding | x1 | -6/Factory Adv. Surge Thruster | x2 | -6/Factory Adv. Surge Thruster | x2 | -5/Factory Adv. Surge Thruster | x2 | -5/Factory Cld. Fission Core | x1 | -5/Factory Lgt. Quantum Reactor | x2 | -5/Factory | Preloaded Adv. Plasma Cannon | x2 | -5/Factory Spectral Analyzer | x1 | -4/Factory Exp. Coolant Injector | x1 | -4/Factory Kinetic Spear | x1 | -4/Factory Exp. Coolant Injector | x1 | -4/Factory Exp. Hacking Suite | x1 | -4/Factory Exp. Hacking Suite | x1 | -4/Factory Exp. Hacking Suite | x1 | -3/Research Exp. Power Amplifier | x1 | -3/Research Kinetic Spear | x1 | -3/Research Adv. Surge Thruster | x2 | -2/Research Alien Tech Used ----------------- Integrated Dissipator Transdimensional Reconstructor Core Expander Core Stripper Sigix Broadsword Phase Redirector Core Reset Matrix Core Membrane Spacefold Activator Achievements -------------- Nope Ultimate Loadout l33t h4x0r Challenges ------------ None Game ------ Seed GreatSupersonicShielding Manual? 0 Play Time 07:47:19 Cumulative 119.9 hours Start 2024.05.11 @ 17:37:58 End 2024.05.13 @ 23:39:27 Sessions 17 Manual Loads 0 Difficulty Rogue Special Mode None Game No. 122 Rogue 122 Adventurer 0 Explorer 0 Win Type 2 Total 4 Types 2/0/2/0/0/0/0/0/0 Lore% 55 Gallery% 53 Achievement% 52 Wizard Run 0 Options --------- Layout 0 ASCII 0 Keyboard 0 Movement Mouse Keybinds 0 Fullscreen 2 Font 18/X11Bold Map View 76x50 Zoom Use 0% Tactical HUD 1 Map Filters NONE Filters NONE Steam 1 RUN: 9ea1b672-370b-46b9-87bd-3a4b2be72b41